Workbook

Sheet AER Sheet Heading (hidden)
B1: =IF(dms_MultiYear_ResponseFlag="Yes","REGULATORY REPORTING STATEMENT - HISTORICAL INFORMATION",INDEX(dms_Worksheet_List,MATCH(dms_Model,dms_Model_List))) -> REGULATORY REPORTING STATEMENT - HISTORICAL INFORMATION
B2: =INDEX(dms_TradingNameFull_List,MATCH(dms_TradingName,dms_TradingName_List)) -> CitiPower
B3: =dms_Header_Span -> 2009 to 2018
B4: XX
C11: EXPENDITURE
C12: =CONCATENATE("Forecast ($0's, real ",dms_DollarReal,")") -> Forecast ($0's, real December 2009)
C13: =CRCP_y4 -> 2007 | D13: =CRCP_y5 -> 2008 | E13: =FRCP_y1 -> 2009 | F13: =FRCP_y2 -> 2010 | G13: =FRCP_y3 -> 2011 | H13: =FRCP_y4 -> 2012 | I13: =FRCP_y5 -> 2013
C42: VOLUMES
C43: 0's
C44: =CRCP_y4 -> 2007 | D44: =CRCP_y5 -> 2008 | E44: =FRCP_y1 -> 2009 | F44: =FRCP_y2 -> 2010 | G44: =FRCP_y3 -> 2011 | H44: =FRCP_y4 -> 2012 | I44: =FRCP_y5 -> 2013

Sheet AER CF (hidden)
B1: AER CONDITIONAL FORMATTING
B4: CONDITIONAL FORMATTING MAP
F5: =INDEX(dms_CF_3.6.1, MATCH(dms_TradingName,dms_CF_TradingName))="Y" | G5: =INDEX(dms_CF_3.6.5, MATCH(dms_TradingName,dms_CF_TradingName))="Y" | H5: =INDEX(dms_CF_3.6.6, MATCH(dms_TradingName,dms_CF_TradingName))="Y" | I5: =INDEX(dms_CF_3.6.7.1, MATCH(dms_TradingName,dms_CF_TradingName))="Y" | J5: =INDEX(dms_CF_3.6.7.2, MATCH(dms_TradingName,dms_CF_TradingName))="Y" | K5: =INDEX(dms_CF_3.6.7.3, MATCH(dms_TradingName,dms_CF_TradingName))="Y" | L5: =INDEX(dms_CF_3.6.7.4, MATCH(dms_TradingName,dms_CF_TradingName))="Y" | M5: =INDEX(dms_CF_3.6.8, MATCH(dms_TradingName,dms_CF_TradingName))="Y" | N5: =INDEX(dms_CF_4.1, MATCH(dms_TradingName,dms_CF_TradingName))="Y" | O5: =INDEX(dms_CF_6.6.1, MATCH(dms_TradingName,dms_CF_TradingName))="Y" | P5: =INDEX(dms_CF_6.8, MATCH(dms_TradingName,dms_CF_TradingName))="Y" | Q5: =INDEX(dms_CF_7.12, MATCH(dms_TradingName,dms_CF_TradingName))="Y" | R5: =INDEX(dms_CF_8.1_A, MATCH(dms_TradingName,dms_CF_TradingName))="Y" | S5: =INDEX(dms_CF_8.1_B, MATCH(dms_TradingName,dms_CF_TradingName))="Y" | T5: =INDEX(dms_CF_8.1_Neg, MATCH(dms_TradingName,dms_CF_TradingName))="Y" | U5: =INDEX(dms_CF_4.4.1_Neg, MATCH(dms_TradingName,dms_CF_TradingName))="Y"
B6: dms_CF_TradingName | C6: JurisdictionList | D6: Sector | E6: Segment | F6: dms_CF_3.6.1 | G6: dms_CF_3.6.5 | H6: dms_CF_3.6.6 | I6: dms_CF_3.6.7.1 | J6: dms_CF_3.6.7.2 | K6: dms_CF_3.6.7.3 | L6: dms_CF_3.6.7.4 | M6: dms_CF_3.6.8 | N6: dms_CF_4.1 | O6: dms_CF_6.6.1 | P6: dms_CF_6.8 | Q6: dms_CF_7.12 | R6: dms_CF_8.1_A | S6: dms_CF_8.1_B | T6: dms_CF_8.1_Neg | U6: dms_CF_4.4.1 | V6: dms_CF_MAIFI_flag | W6: Spare1 | X6: Spare2
B7: Ausgrid | C7: NSW | D7: Electricity | E7: Distribution | G7: Y | I7: N | J7: N | K7: N | L7: Y | M7: N | N7: N | O7: N | P7: Y | Q7: Y | R7: N | S7: Y | T7: Y | U7: N | V7: N | W7: N | X7: N
B8: Ausgrid (Tx Assets) | C8: NSW | D8: Electricity | E8: Distribution | G8: Y | I8: N | J8: N | K8: N | L8: Y | M8: N | N8: N | O8: N | P8: Y | Q8: Y | R8: N | S8: Y | T8: Y | U8: N | V8: N | W8: N | X8: N
B9: AusNet (D) | C9: Vic | D9: Electricity | E9: Distribution | G9: N | I9: N | J9: N | K9: N | L9: N | M9: N | N9: N | O9: N | P9: Y | Q9: N | R9: N | S9: N | T9: Y | U9: N | V9: N | W9: N | X9: N
B10: AusNet (T) | C10: Vic | D10: Electricity | E10: Transmission | G10: N | I10: N | J10: N | K10: N | L10: N | M10: N | N10: Y | O10: N | P10: Y | Q10: N | R10: N | S10: N | T10: Y | U10: N | V10: N | W10: N | X10: N
G11: N | I11: N | J11: N | K11: N | L11: N | M11: N | N11: N | P11: Y | Q11: N | R11: N | S11: N | T11: N | U11: N | V11: N | W11: N | X11: N
G12: N | I12: N | J12: N | K12: N | L12: N | M12: N | N12: N | P12: Y | Q12: N | R12: N | S12: N | T12: N | U12: N | V12: N | W12: N | X12: N
B13: CitiPower | C13: Vic | D13: Electricity | E13: Distribution | G13: N | I13: N | J13: N | K13: N | L13: N | M13: N | N13: N | O13: N | P13: Y | Q13: N | R13: N | S13: N | T13: Y | U13: N | V13: N | W13: N | X13: N
B14: Directlink | C14: Qld | D14: Electricity | E14: Transmission | G14: N | I14: N | J14: N | K14: N | L14: N | M14: N | N14: Y | O14: N | P14: Y | Q14: N | R14: N | S14: Y | T14: Y | U14: N | V14: N | W14: N | X14: N
B15: ElectraNet | C15: SA | D15: Electricity | E15: Transmission | G15: N | I15: N | J15: N | K15: N | L15: N | M15: N | N15: Y | O15: N | P15: Y | Q15: N | R15: N | S15: Y | T15: Y | U15: N | V15: N | W15: N | X15: N
B16: Endeavour Energy | C16: NSW | D16: Electricity | E16: Distribution | G16: Y | I16: N | J16: N | K16: N | L16: Y | M16: N | N16: N | O16: N | P16: Y | Q16: Y | R16: N | S16: Y | T16: Y | U16: Y | V16: N | W16: N | X16: N
B17: Energex | C17: Qld | D17: Electricity | E17: Distribution | G17: Y | I17: N | J17: N | K17: N | L17: N | M17: N | N17: N | O17: N | P17: Y | Q17: Y | R17: N | S17: Y | T17: Y | U17: Y | V17: N | W17: N | X17: N
B18: Ergon Energy | C18: Qld | D18: Electricity | E18: Distribution | G18: Y | I18: N | J18: N | K18: N | L18: N | M18: N | N18: N | O18: N | P18: Y | Q18: Y | R18: N | S18: Y | T18: Y | U18: N | V18: N | W18: N | X18: N
B19: Essential Energy | C19: NSW | D19: Electricity | E19: Distribution | G19: Y | I19: N | J19: N | K19: N | L19: Y | M19: N | N19: N | O19: N | P19: Y | Q19: Y | R19: N | S19: Y | T19: Y | U19: N | V19: N | W19: N | X19: N
B20: Evoenergy Distribution | C20: ACT | D20: Electricity | E20: Distribution | G20: Y | I20: Y | J20: Y | K20: N | L20: Y | M20: N | N20: Y | O20: N | P20: Y | Q20: Y | R20: N | S20: Y | T20: Y | U20: N | V20: N | W20: N | X20: N
B21: Evoenergy Distribution (Tx Assets) | C21: ACT | D21: Electricity | E21: Distribution | G21: Y | I21: Y | J21: Y | K21: N | L21: Y | M21: N | N21: Y | O21: N | P21: Y | Q21: Y | R21: N | S21: Y | T21: Y | U21: N | V21: N | W21: N | X21: N
B22: Jemena Electricity | C22: Vic | D22: Electricity | E22: Distribution | G22: N | I22: N | J22: N | K22: N | L22: N | M22: N | N22: N | O22: N | P22: Y | Q22: N | R22: N | S22: N | T22: Y | U22: N | V22: N | W22: N | X22: N
B23: Murraylink | C23: SA | D23: Electricity | E23: Transmission | G23: N | I23: N | J23: N | K23: N | L23: N | M23: N | N23: Y | O23: N | P23: Y | Q23: N | R23: N | S23: Y | T23: Y | U23: N | V23: N | W23: N | X23: N
B24: Power and Water | C24: NT | D24: Electricity | E24: Distribution | G24: N | I24: N | J24: Y | K24: N | L24: N | M24: Y | N24: Y | O24: Y | P24: Y | Q24: Y | R24: N | S24: Y | T24: Y | U24: N | V24: N | W24: N | X24: N
B25: Powercor Australia | C25: Vic | D25: Electricity | E25: Distribution | G25: N | I25: N | J25: N | K25: N | L25: N | M25: N | N25: N | O25: N | P25: Y | Q25: N | R25: N | S25: N | T25: Y | U25: N | V25: N | W25: N | X25: N
B26: Powerlink | C26: Qld | D26: Electricity | E26: Transmission | G26: N | I26: N | J26: N | K26: N | L26: N | M26: N | N26: Y | O26: N | P26: Y | Q26: N | R26: N | S26: Y | T26: Y | U26: N | V26: N | W26: N | X26: N
B27: SA Power Networks | C27: SA | D27: Electricity | E27: Distribution | G27: Y | I27: N | J27: N | K27: N | L27: N | M27: N | N27: N | O27: N | P27: Y | Q27: Y | R27: Y | S27: Y | T27: N | U27: N | V27: N | W27: N | X27: N
B28: TasNetworks (D) | C28: Tas | D28: Electricity | E28: Distribution | G28: Y | I28: N | J28: N | K28: N | L28: N | M28: N | N28: N | O28: N | P28: Y | Q28: Y | R28: N | S28: Y | T28: Y | U28: N | V28: N | W28: N | X28: N
B29: TasNetworks (T) | C29: Tas | D29: Electricity | E29: Transmission | G29: N | I29: N | J29: N | K29: N | L29: N | M29: N | N29: Y | O29: N | P29: Y | Q29: N | R29: N | S29: Y | T29: Y | U29: N | V29: N | W29: N | X29: N
B30: TransGrid | C30: NSW | D30: Electricity | E30: Transmission | G30: N | I30: N | J30: N | K30: N | L30: N | M30: N | N30: Y | O30: N | P30: Y | Q30: N | R30: N | S30: Y | T30: Y | U30: N | V30: N | W30: N | X30: N
B31: United Energy | C31: Vic | D31: Electricity | E31: Distribution | G31: N | I31: N | J31: N | K31: N | L31: N | M31: N | N31: N | O31: N | P31: Y | Q31: N | R31: N | S31: N | T31: Y | U31: N | V31: N | W31: N | X31: N
B34: Confidential
B35: Amended
B37: Worksheet 6.2 STPIS reliability
B38: Formula | F38: Applied to:
B40: =INDEX(dms_CBD_flag,MATCH(dms_TradingName,dms_TradingName_List))="NO" | F40: $D$11,$D$17,$D$23,$D$33,$D$39,$D$45,$D$55,$D$61,$D$67,$D$77,$D$83,$D$89
B41: =INDEX(dms_Urban_flag,MATCH(dms_TradingName,dms_TradingName_List))="NO" | F41: $D$12,$D$18,$D$24,$D$56,$D$62,$D$78,$D$68,$D$84
B42: =INDEX(dms_ShortRural_flag,MATCH(dms_TradingName,dms_TradingName_List))="NO" | F42: $D$13,$D$19,$D$25,$D$57,$D$63,$D$69,$D$79,$D$85
B43: =INDEX(dms_LongRural_flag,MATCH(dms_TradingName,dms_TradingName_List))="NO" | F43: $D$14,$D$20,$D$26,$D$58,$D$64,$D$65,$D$70,$D$71,$D$80,$D$86
B44: =INDEX(dms_FeederType_5_flag,MATCH(dms_TradingName,dms_TradingName_List))="NO" | F44: $D$87,$D$81,$D$71,$D$65,$D$59,$D$49,$D$43,$D$37,$D$21,$D$15
B45: =dms_MAIFI_Flag="No" | F45: $D$55:$D$72
B48: Business & other details
B49: =(INDEX(dms_Model_Span,MATCH(dms_Model,dms_Model_List))>1)
B50: =(INDEX(dms_Model_Span,MATCH(dms_Model,dms_Model_List))=1)
B53: STYLES IN USE
B54: HEADING 1 | C54: dms_1
B55: HEADING 2 | C55: dms_2
B56: HEADING 3 | C56: dms_3
B57: HEADING 4 | C57: dms_4
B58: HEADING 5 | C58: dms_5
C59: dms_NUM
C60: dms_NUM%
C61: dms_Row_Locked
C62: dms_Row1
C63: dms_Row2
C64: dms_T1
C65: dms_T2
C66: dms_BH
C67: dms_BY1
C68: dms_BY2
C69: dms_GH
C70: dms_GY1
C71: dms_GY2

Sheet AER NRs (hidden)
B1: AER NAMED RANGES
B3: DROP DOWN SELECTORS USED IN WORKBOOKS
B5: COVER SHEET | C5: dms_DataQuality_List | D5: dms_Confid_status_List
C6: -- select -- | D6: -- select --
C7: Actual | D7: Public
C8: Estimate | D8: Confidential
C9: Consolidated
C12: For all files either AER or business needs to be able to specify the type of submission | D12: For PTRM & RFM templates we must provide a choice in case they change their form of control - otherwise it is drawn from the business specific lookup table above.
C13: dms_SourceList | D13: dms_FormControl_Choices
C14: -- select -- | D14: Revenue cap
C15: After appeal | D15: Revenue yield
C16: Draft decision | D16: Weighted average price cap
C17: Final decision
C18: PTRM update 1
C19: PTRM update 2
C20: PTRM update 3
C21: PTRM update 4
C22: PTRM update 5
C23: PTRM update 6
C24: PTRM update 7
C25: Regulatory proposal
C26: Reporting
C27: Revised regulatory proposal
K30: This is used to create an image to insert on 6.3 STPIS sheet - not for dropdown lists. | N30: GAS
B31: CA & RESET RINS DNSP | C31: dms_DNSP_020301_SubstationType | D31: dms_DNSP_020301_ProjectType | E31: dms_DNSP_020301_ProjectTrigger | F31: dms_DNSP_020302_ProjectType | G31: dms_DNSP_020302_ProjectTrigger | H31: dms_STPIS_Exclusion_List | I31: dms_Reason_Interruption | J31: dms_Reason_Interruption_Detailed | K31: Reason for interruption | N31: dms_N0205_AssetType
C32: Subtransmission substation | D32: New substation establishment | E32: Demand growth | F32: New line on new route - single circuit | G32: Demand growth | H32: Weather | I32: Animal | J32: Animal impact | K32: Animal | L32: Animal impact | N32: Cast Iron
C33: Zone substation | D33: Substation upgrade - capacity | E33: Voltage issues | F33: New line on new route - dual circuit | G33: Voltage issues | H33: Equipment failure | I33: Asset failure | J33: Animal nesting/burrowing, etc and other | L33: Animal nesting/burrowing, etc and other | N33: PVC
C34: Switching station | D34: Substation upgrade - voltage | E34: Reactive power issue | F34: New line on new route - other | G34: Reactive power issue | H34: Operational error | I34: Other | J34: Other | L34: Other | N34: Polyamide
C35: Other | D35: Other | E35: Fault level issues | F35: Line rebuild over existing route - single circuit | G35: Fault level issues | H35: Vegetation | I35: Overloads | J35: LV | K35: Asset failure | L35: LV | N35: High density polyethylene (80)
E36: Safety | F36: Line rebuild over existing route - dual circuit | G36: Net market benefit | H36: Animals | I36: Planned | J36: Distribution substation | L36: Distribution substation | N36: High density polyethylene (100)
E37: Environment | F37: Reconductor - Single circuit | G37: Safety | H37: Third party impacts | I37: Network business | J37: HV | L37: HV | N37: High density polyethylene (250)
E38: Other | F38: Reconductor - Dual circuit | G38: Environment | H38: Transmission failure | I38: Third party | J38: Zone substation | L38: Zone substation | N38: High density polyethylene (575)
F39: Reconductor - Other | G39: Other | H39: Load shedding | I39: Unknown | J39: Subtransmission | L39: Subtransmission | N39: Medium density polyethylene
F40: Line upgrade - raising/retensoring | H40: Inter-distributor connection failure | I40: Vegetation | J40: insert description of 'other' | K40: Other | L40: insert description of 'other' | N40: Unprotected steel
F41: Line upgrade - voltage upgrade | H41: Other | I41: Weather | J41: Network error | K41: Overloads | N41: Protected steel
F42: Line upgrade - capacity | I42: 2 - STPIS Exclusion (3.3)(a) | J42: Switching and protection error | K42: Planned | N42: Other
F43: String spare circuit | I43: 3 - STPIS Exclusion (3.3)(a) | J43: Fire | K43: Network business | L43: Network error
F44: Other | I44: 4 - STPIS Exclusion (3.3)(a) | J44: Other | L44: Switching and protection error
I45: 5 - STPIS Exclusion (3.3)(a) | J45: Dig-in | K45: Third party | L45: Fire
I46: 6 - STPIS Exclusion (3.3)(a) | J46: Unauthorised access | L46: Other
I47: 7 - STPIS Exclusion (3.3)(a) | J47: Vehicle impact | L47: Dig-in
J48: Unknown | L48: Unauthorised access
J49: Blow-in/Fall-in - NSP responsibility | L49: Vehicle impact
J50: Grow-in - NSP responsibility | K50: Unknown | L50: Unknown
J51: Blow-in/Fall-in - Other responsible party | K51: Vegetation | L51: Blow-in/Fall-in - NSP responsibility
J52: Grow-in - Other responsible party | L52: Grow-in - NSP responsibility
L53: Blow-in/Fall-in - Other responsible party
L54: Grow-in - Other responsible party
K55: Weather
K56: 2 - STPIS Exclusion (3.3)(a)
K57: 3 - STPIS Exclusion (3.3)(a)
K58: 4 - STPIS Exclusion (3.3)(a)
K59: 5 - STPIS Exclusion (3.3)(a)
K60: 6 - STPIS Exclusion (3.3)(a)
K61: 7 - STPIS Exclusion (3.3)(a)
B64: CA & RESET RINS TNSP | C64: dms_TNSP_0203_SubstationType | D64: dms_TNSP_020301_ProjectType | E64: dms_TNSP_020301_ProjectTrigger | F64: dms_TNSP_020302_ProjectType | G64: dms_TNSP_0203_ProjectTrigger
C65: Terminal station | D65: New substation establishment | E65: Demand growth | F65: New line on new route - single circuit | G65: Demand growth
C66: Switching station | D66: Capacity upgrade | E66: Voltage issues | F66: New line on new route - dual circuit | G66: Voltage issues
C67: Transmission substation | D67: Voltage upgrade | E67: Reactive power issue | F67: New line on new route - other | G67: Reactive power issue
C68: Other | D68: Other | E68: Fault level issues | F68: Line rebuild over existing route - single circuit | G68: Fault level issues
E69: Net market benefit | F69: Line rebuild over existing route - dual circuit | G69: Net market benefit
E70: Safety | F70: Reconductor - Single circuit | G70: Safety
E71: Environment | F71: Reconductor - Dual circuit | G71: Environment
E72: Other | F72: Reconductor - Other | G72: Other
F73: Line upgrade - raising/retensoring
F74: Line upgrade - voltage upgrade
F75: Line upgrade - capacity
F76: String spare circuit
F77: Other
B81: NAMED RANGES USED IN ETL PROCESS
B83: CA & RESET RINS DNSP ONLY | C83: dms_020303_01_UOM | D83: dms_020501_01_UOM | E83: dms_020501_02_UOM | F83: dms_020501_03_UOM | G83: dms_020501_04_UOM | H83: dms_020701_01_UOM | I83: dms_020701_02_UOM | J83: dms_020701_01_Rows | K83: dms_040102_01_UOM | L83: dms_040102_04_UOM | M83: dms_S140101_UOM | N83: dms_S140102_UOM | O83: dms_S140201_UOM
C84: Circuit line length in km | D84: 0's | E84: 0's | F84: 0's | G84: 0's | H84: km | I84: km | J84: Route line length within zone | K84: 0's | L84: days | M84: number | N84: number | O84: number per km
C85: Circuit line length in km | D85: 0's | E85: 0's | F85: 0's | G85: 0's | H85: 0's | I85: 0's | J85: Number of maintenance spans | K85: 0's | L85: 0's | M85: number | N85: number | O85: number
C86: Circuit line length in km | D86: MVA added | E86: MVA added | F86: MVA added | G86: MVA added | H86: km | I86: km | J86: Total length of maintenance spans | K86: 0's | L86: $0s | M86: number | N86: number | O86: number
C87: Circuit line length in km | D87: 0's | E87: 0's | F87: 0's | G87: 0's | H87: km | I87: km | J87: Length of vegetation corridors | K87: $0s | L87: 0's | M87: km | N87: number
C88: Number | D88: total spend $0s | E88: total spend $0s | F88: total spend $0s | G88: total spend $0s | H88: 0's | I88: 0's | J88: Average number of trees per maintenance span
C89: Number | D89: net circuit km added | E89: net circuit km added | F89: net circuit km added | G89: net circuit km added | H89: years | I89: years | J89: Average frequency of cutting cycle
C90: Number | D90: total spend $0s | E90: total spend $0s | F90: total spend $0s | G90: total spend $0s
D91: net circuit km added | E91: net circuit km added | F91: net circuit km added | G91: net circuit km added
D92: total spend $0s | E92: total spend $0s | F92: total spend $0s | G92: total spend $0s
D93: 0's | F93: $0s
D94: 0's
D95: 0's
D96: $0s
B99: CA & RESET RINS TNSP ONLY | C99: dms_020701_01_UOM
C100: km
C101: 0's
C102: km
C103: 0's
C104: km
C105: metres
C106: years
B109: CA & RESET RINS DNSP & TNSP | C109: dms_020603_01_UOM
C110: 0's
C111: 0's
C112: 0's
C113: 0's
C114: (per cent)
B117: EB & RESET RINS DNSP ONLY | C117: dms_030601_01_UOM | D117: dms_030601_02_UOM | E117: dms_030701_01_UOM | F117: dms_030702_01_UOM | G117: dms_030703_01_UOM
C118: minutes/customer | D118: minutes/customer | E118: Customer / km | F118: % | G118: km
C119: minutes/customer | D119: minutes/customer | E119: MWh/customer | F119: Number of spans
C120: interruptions/customer | D120: interruptions/customer | E120: kVA / customer | F120: Number of spans
C121: interruptions/customer | D121: interruptions/customer | F121: Number of spans
F122: Number of spans
F123: Years
F124: Years
F125: Trees
F126: Trees
F127: Defects
F128: Defects
F129: Spans
F130: km
F131: Spans
C133: WHEN INSERTING COVER SHEET INTO A TNSP FILE - APPLY THESE NAMED RANGES
B134: EB & RESET RINS TNSP ONLY | C134: dms_030601_01_UOM | E134: dms_030701_01_UOM | F134: dms_030702_01_UOM
C135: % | E135: Number of spans | F135: km
C136: number | E136: Years | F136: %
C137: number | E137: Trees | F137: km
C138: % | E138: Defects | F138: number
C139: number | E139: Number of spans
C140: number | E140: km
C141: % | E141: km
C142: number | E142: Number of spans
C143: number
C144: %
C145: number
C146: %
C147: number
C148: %
C149: number
B151: EB & RESET RINS DNSP & TNSP | C151: dms_EB_RAB_PIT
C152: Beginning of year
C153: End of year
C154: End of year
C155: End of year
C156: End of year
C157: End of year
B159: ARR DNSP ONLY | C159: dms_030605_UOM | D159: dms_03060703_UOM | E159: Spare | F159: Spare
C160: number | D160: number
C161: number | D161: number
C162: number | D162: number
C163: number | D163: number
C164: number | D164: (per cent)
C165: number
C166: number
C167: number
C168: number
C169: number
C170: number
C171: number
C172: (per cent)
C173: (per cent)
B175: RFM | C175: dms_Beg | D175: dms_Mid | E175: dms_End
C176: Beginning of year | D176: Mid year | E176: End of Year
B178: PTRM | C178: dms_PTRM_RAB_PIT | D178: dms_PTRM_TAB_PIT | E178: DMS_Xfactor
C179: Beginning of year | D179: Beginning of year | E179: x factors
C180: End of year | D180: End of year
C181: End of year | D181: End of year
C182: End of year | D182: End of year
C183: End of year
B186: STPIS & MIC NAMED RANGES
B188: These "row descriptions" are the column headings in the various templates but become row descriptions in the ETL process
B190: Table 6.3 sustained interruptions - row descriptions | C190: dms_060301_CustNo_Affected_Row | D190: dms_060301_Avg_Duration_Sustained_Int_Row | E190: dms_060301_Effect_unplanned_SAIDI_Row | F190: dms_060301_Effect_unplanned_SAIFI_Row
C191: Number of customers affected by the interruption | D191: Average duration of sustained customer interruption | E191: Effect on unplanned SAIDI | F191: Effect on unplanned SAIFI
B194: Table 6.1 telephone answering - row descriptions and start date | C194: dms_060101_Rows | D194: dms_060102_Rows | E194: dms_060101_StartDateTxt
C195: Total number of calls (after removing excluded events) | D195: Number of calls answered within 30 seconds (after excluding excluded events) | E195: =dms_060701_StartDateTxt -> 1-Jan-2009
B198: Table 6.8.1 - row descriptions | C198: dms_060801_01_Rows | D198: dms_060801_02_Rows | E198: dms_060801_03_Rows | F198: dms_060801_04_Rows
C199: Number of interruptions | D199: Duration of interruptions | E199: Total unplanned minutes off supply | F199: Effect on unplanned MAIFI
B202: Table 7.9.4 - market impact component - row descriptions | C202: dms_070904_01_Rows | D202: without exclusions | E202: with exclusions
B205: These headings (Lists) are determined from the INDEX/MATCH function on the NSP selected on the Business & other details sheet
B207: Table 6.7.1 - daily performance data - unplanned - MAIFI -- row descriptions and header named range values | C207: dms_060701_Feeder_Header_Lvl4 | D207: =INDEX(dms_FeederName_1,MATCH(dms_TradingName,dms_TradingName_List)) -> CBD | E207: =INDEX(dms_FeederName_1,MATCH(dms_TradingName,dms_TradingName_List)) -> CBD | F207: =INDEX(dms_FeederName_2,MATCH(dms_TradingName,dms_TradingName_List)) -> Urban | G207: =INDEX(dms_FeederName_2,MATCH(dms_TradingName,dms_TradingName_List)) -> Urban | H207: =INDEX(dms_FeederName_3,MATCH(dms_TradingName,dms_TradingName_List)) -> Short rural | I207: =INDEX(dms_FeederName_3,MATCH(dms_TradingName,dms_TradingName_List)) -> Short rural | J207: =INDEX(dms_FeederName_4,MATCH(dms_TradingName,dms_TradingName_List)) -> Long rural | K207: =INDEX(dms_FeederName_4,MATCH(dms_TradingName,dms_TradingName_List)) -> Long rural | L207: =IF((INDEX(dms_FeederName_5,MATCH(dms_TradingName,dms_TradingName_List))=0),"Network",(INDEX(dms_FeederName_5,MATCH(dms_TradingName,dms_TradingName_List)))) -> Network | M207: =IF((INDEX(dms_FeederName_5,MATCH(dms_TradingName,dms_TradingName_List))=0),"Network",(INDEX(dms_FeederName_5,MATCH(dms_TradingName,dms_TradingName_List)))) -> Network | N207: Network | O207: Network
C209: dms_060701_Rows | D209: All events | E209: After removing excluded events | F209: All events | G209: After removing excluded events | H209: All events | I209: After removing excluded events | J209: All events | K209: After removing excluded events | L209: All events | M209: After removing excluded events | N209: All events | O209: After removing excluded events
D210: the number of column headings changes from 10 to 12 depending on the number of feeder categories for the NSP
C212: dms_0603_FeederList | D212: =INDEX(dms_FeederName_1,MATCH(dms_TradingName,dms_TradingName_List)) -> CBD | E212: =INDEX(dms_FeederName_2,MATCH(dms_TradingName,dms_TradingName_List)) -> Urban | F212: =INDEX(dms_FeederName_3,MATCH(dms_TradingName,dms_TradingName_List)) -> Short rural | G212: =INDEX(dms_FeederName_4,MATCH(dms_TradingName,dms_TradingName_List)) -> Long rural
B215: Use these to add to specific worksheets in existing files | C215: Use these to add to specific worksheets in existing files
B218: ARRs 6.7 STPIS daily performance | C218: dms_060101_Values | D218: dms_060102_Values | E218: dms_060701_Values
C219: dms_LeapYear
B222: ARR's 6.8 STPIS exclusions | C222: dms_060801_Event_Date | D222: dms_060801_OutageID | E222: dms_060801_FeederID | F222: dms_060801_FeederClass | G222: dms_060801_CauseID | H222: dms_060801_01_Values | I222: dms_060801_02_Values | J222: dms_060801_03_Values | K222: dms_060801_Excl_Cat | L222: dms_060801_04_Values
C223: dms_060801_StartCell
B226: CA 6.3 sustained interruptions | C226: dms_060301_Event_Date | D226: dms_060301_Event_Time | E226: dms_060301_AssetID | F226: dms_060301_FeederClass | G226: dms_060301_Reason | H226: dms_060301_DetailedReason | I226: dms_060301_CustNo_Affected_Values | J226: dms_060301_Avg_Duration_Sustained_Int_Values | K226: dms_060301_Effect_unplanned_SAIDI_Values | L226: dms_060301_Effect_unplanned_SAIFI_Values | M226: dms_060301_MED

Sheet AER lookups (hidden)
B1: AER LOOKUP TABLES
B3: Data in these columns used for data validation and database purposes.
B4: Date last modified: | C4: 2017-01-16 | D4: added (Albury and Victora) for AGN
C5: 2016-10-17 | D5: updated TransGrid's correct legal name, corrected TasNetworks (T) to June financial year
C6: 2017-02-01 | D6: inserted Power and Water, added NRs (dms_FeederCat_1 and dms_FeederCat_2)
C7: 2017-03-03 | D7: inserted AEMO as a business | Z7: FOR ELECTRICITY BUSINESSES ONLY
C8: 2018-03-28 | D8: major changes to accommodate STPIS
C9: Template Version | D9: 5 | Z9: Feeder Types | AD9: TasNetworks (D) | AE9: MAIFI flag | AF9: Feeder Names
Z11: CBD | AA11: Urban | AB11: Short rural | AC11: Long rural | AD11: EXTRA
B12: dms_TradingName_List | C12: dms_TradingNameFull_List | D12: dms_ABN_List | E12: dms_JurisdictionList | F12: dms_Sector_List | G12: dms_Segment_List | H12: dms_FormControl_List | I12: dms_RPT_List | J12: dms_RPTMonth_List | K12: dms_CRCPlength_List | L12: dms_FRCPlength_List | M12: dms_PRCPlength_List | N12: dms_663_List | O12: dms_DeterminationRef_List | P12: dms_Addr1_List | Q12: dms_Addr2_List | R12: dms_Suburb_List | S12: dms_State_List | T12: dms_PostCode_List | U12: dms_PAddr1_List | V12: dms_PAddr2_List | W12: dms_PSuburb_List | X12: dms_PState_List | Y12: dms_PPostCode_List | Z12: dms_CBD_flag | AA12: dms_Urban_flag | AB12: dms_ShortRural_flag | AC12: dms_LongRural_flag | AD12: dms_FeederType_5_flag | AE12: dms_MAIFI_flag_List | AF12: dms_FeederName_1 | AG12: dms_FeederName_2 | AH12: dms_FeederName_3 | AI12: dms_FeederName_4 | AJ12: dms_FeederName_5 | AK12: dms_Public_Lighting_List | AL12: Name
B13: AusNet (D) | C13: AusNet Electricity Services Pty Ltd | D13: 91064651118 | E13: Vic | F13: Electricity | G13: Distribution | H13: Revenue cap | I13: Calendar | J13: December | K13: 5 | L13: 5 | M13: 5 | N13: 2 | O13: 2016-20 Distribution Determination | P13: Level 32 | Q13: 2 Southbank Boulevard | R13: SOUTHBANK | S13: Vic | T13: 3006 | U13: Locked Bag 14051 | W13: MELBOURNE CITY MAIL CENTRE | X13: Vic | Y13: 8001 | Z13: NO | AA13: YES | AB13: YES | AC13: YES | AD13: NO | AE13: YES | AF13: CBD | AG13: Urban | AH13: Short rural | AI13: Long rural | AK13: YES | AL13: =B13 -> AusNet (D)
B14: Australian Distribution Co. (Vic) | C14: Australian Distribution Co. (Victoria) | D14: 11222333444 | E14: Vic | F14: Electricity | G14: Distribution | H14: Revenue cap | I14: Calendar | J14: December | K14: 5 | L14: 5 | M14: 5 | N14: 2 | O14: distribution determination | P14: 123 Straight Street | R14: MELBOURNE | S14: Vic | T14: 3000 | U14: PO Box 123 | W14: MELBOURNE | X14: Vic | Y14: 3000 | Z14: NO | AA14: NO | AB14: NO | AC14: NO | AD14: NO | AE14: YES | AF14: CBD | AG14: Urban | AH14: Short rural | AI14: Long rural | AK14: YES | AL14: Australian Distribution Co. (Vic)
B15: CitiPower | C15: CitiPower | D15: 76064651056 | E15: Vic | F15: Electricity | G15: Distribution | H15: Revenue cap | I15: Calendar | J15: December | K15: 5 | L15: 5 | M15: 5 | N15: 2 | O15: 2016-20 Distribution Determination | P15: 40 Market Street | R15: MELBOURNE | S15: Vic | T15: 3000 | U15: Locked Bag 14090 | W15: MELBOURNE | X15: Vic | Y15: 8001 | Z15: YES | AA15: YES | AB15: NO | AC15: NO | AD15: NO | AE15: YES | AF15: CBD | AG15: Urban | AH15: Short rural | AI15: Long rural | AK15: YES | AL15: CitiPower
B16: Jemena Electricity | C16: Jemena Electricity | D16: 82064651083 | E16: Vic | F16: Electricity | G16: Distribution | H16: Revenue cap | I16: Calendar | J16: December | K16: 5 | L16: 5 | M16: 5 | N16: 2 | O16: 2016-20 Distribution Determination | P16: Level 16 | Q16: 567 Collins Street | R16: MELBOURNE | S16: Vic | T16: 3000 | U16: PO Box 16182 | W16: MELBOURNE | X16: Vic | Y16: 8001 | Z16: NO | AA16: YES | AB16: YES | AC16: NO | AD16: NO | AE16: YES | AF16: CBD | AG16: Urban | AH16: Short rural | AI16: Long rural | AK16: YES | AL16: Jemena Electricity
B17: Powercor Australia | C17: Powercor Australia | D17: 89064651109 | E17: Vic | F17: Electricity | G17: Distribution | H17: Revenue cap | I17: Calendar | J17: December | K17: 5 | L17: 5 | M17: 5 | N17: 2 | O17: 2016-20 Distribution Determination | P17: 40 Market Street | R17: MELBOURNE | S17: Vic | T17: 3000 | U17: Locked bag 14090 | W17: MELBOURNE | X17: Vic | Y17: 8001 | Z17: NO | AA17: NO | AB17: YES | AC17: YES | AD17: NO | AE17: YES | AF17: CBD | AG17: Urban | AH17: Short rural | AI17: Long rural | AK17: YES | AL17: Powercor Australia
B18: United Energy | C18: United Energy | D18: 70064651029 | E18: Vic | F18: Electricity | G18: Distribution | H18: Revenue cap | I18: Calendar | J18: December | K18: 5 | L18: 5 | M18: 5 | N18: 2 | O18: 2016-20 Distribution Determination | P18: 43-45 Centreway | R18: MOUNT WAVERLEY | S18: Vic | T18: 3149 | U18: PO Box 449 | W18: MOUNT WAVERLEY | X18: Vic | Y18: 3170 | Z18: NO | AA18: NO | AB18: YES | AC18: NO | AD18: NO | AE18: YES | AF18: CBD | AG18: Urban | AH18: Short rural | AI18: Long rural | AK18: YES | AL18: United Energy
B23: The Reg Year Ending (dms_RYE) must be set to the last year of the regulatory period. For forecast data is is usually (FRCP_y5) for actual it is a single year (CRY). For historical actual data the RYE will need to be set manually in the business details sheet by setting the dms_Multiyear_flag to 1 and putting the correct value in 'dms_Specified_FinalYear. See cells C67:C68
B24: dms_Model_List | C24: dms_Model_Name_Format1 | D24: dms_Worksheet_List | E24: dms_Model_Span_List
B25: ARR | C25: Annual Reporting | D25: =IF(dms_MultiYear_ResponseFlag="yes","NEW HISTORICAL ANNUAL REPORTING","ANNUAL REPORTING") -> NEW HISTORICAL ANNUAL REPORTING | E25: 1
B26: CA | C26: Category Analysis | D26: =IF(dms_MultiYear_ResponseFlag="yes","NEW HISTORICAL - CALENDAR YEARS","CATEGORY ANALYSIS") -> NEW HISTORICAL - CALENDAR YEARS | E26: 1
B27: CESS | C27: Capitlal Expenditure | D27: CAPITLAL EXPENDITURE SHARING SCHEMING | E27: 5
B28: CPI | C28: CPI | D28: CPI | E28: 5
B29: EB | C29: Economic Benchmarking | D29: =IF(dms_MultiYear_ResponseFlag="yes","NEW HISTORICAL ECONOMIC BENCHMARKING","ECONOMIC BENCHMARKING") -> NEW HISTORICAL ECONOMIC BENCHMARKING | E29: 1
B30: Pricing | C30: Pricing Proposal | D30: PRICING PROPOSAL | E30: 5
B31: PTRM | C31: Post Tax Revenue Model | D31: POST TAX REVENUE MODEL | E31: 5
B32: Reset | C32: Regulatory Reporting (Reset) | D32: REGULATORY REPORTING STATEMENT | E32: 5
B33: RFM | C33: Roll Forward Model | D33: ROLL FORWARD MODEL | E33: 5
B34: WACC | C34: Weighted Average Cost of Capital | D34: WEIGHTED AVERAGE COST OF CAPITAL | E34: 1
B38: Financial | C38: Calendar | E38: PREVIOUS | G38: CURRENT | I38: FORTHCOMING
B39: 1987-88 | C39: 1988 | D39: PRCP_y1 | E39: =INDEX(INDIRECT(dms_RPT),dms_PRCP_start_row) -> 1999 | F39: CRCP_y1 | G39: =INDEX(INDIRECT(dms_RPT),dms_CRCP_start_row) -> 2004 | H39: =FRCP_y1 -> 2009 | I39: =INDEX(INDIRECT(dms_RPT),dms_FRCP_start_row) -> 2009
B40: 1988-89 | C40: 1989 | D40: PRCP_y2 | E40: =INDEX(INDIRECT(dms_RPT),dms_PRCP_start_row+1) -> 2000 | F40: CRCP_y2 | G40: =INDEX(INDIRECT(dms_RPT),dms_CRCP_start_row+1) -> 2005 | H40: FRCP_y2 | I40: =INDEX(INDIRECT(dms_RPT),dms_FRCP_start_row+1) -> 2010
B41: 1989-90 | C41: 1990 | D41: PRCP_y3 | E41: =INDEX(INDIRECT(dms_RPT),dms_PRCP_start_row+2) -> 2001 | F41: CRCP_y3 | G41: =INDEX(INDIRECT(dms_RPT),dms_CRCP_start_row+2) -> 2006 | H41: FRCP_y3 | I41: =INDEX(INDIRECT(dms_RPT),dms_FRCP_start_row+2) -> 2011
B42: 1990-91 | C42: 1991 | D42: PRCP_y4 | E42: =INDEX(INDIRECT(dms_RPT),dms_PRCP_start_row+3) -> 2002 | F42: CRCP_y4 | G42: =INDEX(INDIRECT(dms_RPT),dms_CRCP_start_row+3) -> 2007 | H42: FRCP_y4 | I42: =INDEX(INDIRECT(dms_RPT),dms_FRCP_start_row+3) -> 2012
B43: 1991-92 | C43: 1992 | D43: PRCP_y5 | E43: =INDEX(INDIRECT(dms_RPT),dms_PRCP_start_row+4) -> 2003 | F43: CRCP_y5 | G43: =INDEX(INDIRECT(dms_RPT),dms_CRCP_start_row+4) -> 2008 | H43: FRCP_y5 | I43: =INDEX(INDIRECT(dms_RPT),dms_FRCP_start_row+4) -> 2013
B44: 1992-93 | C44: 1993 | D44: PRCP_y6 | E44: =INDEX(INDIRECT(dms_RPT),dms_PRCP_start_row+5) -> 2004 | F44: CRCP_y6 | G44: =INDEX(INDIRECT(dms_RPT),dms_CRCP_start_row+5) -> 2009 | H44: FRCP_y6 | I44: =INDEX(INDIRECT(dms_RPT),dms_FRCP_start_row+5) -> 2014
B45: 1993-94 | C45: 1994 | D45: PRCP_y7 | E45: =INDEX(INDIRECT(dms_RPT),dms_PRCP_start_row+6) -> 2005 | F45: CRCP_y7 | G45: =INDEX(INDIRECT(dms_RPT),dms_CRCP_start_row+6) -> 2010 | H45: FRCP_y7 | I45: =INDEX(INDIRECT(dms_RPT),dms_FRCP_start_row+6) -> 2015
B46: 1994-95 | C46: 1995 | D46: PRCP_y8 | E46: =INDEX(INDIRECT(dms_RPT),dms_PRCP_start_row+7) -> 2006 | F46: CRCP_y8 | G46: =INDEX(INDIRECT(dms_RPT),dms_CRCP_start_row+7) -> 2011 | H46: FRCP_y8 | I46: =INDEX(INDIRECT(dms_RPT),dms_FRCP_start_row+7) -> 2016
B47: 1995-96 | C47: 1996 | D47: PRCP_y9 | E47: =INDEX(INDIRECT(dms_RPT),dms_PRCP_start_row+8) -> 2007 | F47: CRCP_y9 | G47: =INDEX(INDIRECT(dms_RPT),dms_CRCP_start_row+8) -> 2012 | H47: FRCP_y9 | I47: =INDEX(INDIRECT(dms_RPT),dms_FRCP_start_row+8) -> 2017
B48: 1996-97 | C48: 1997 | D48: PRCP_y10 | E48: =INDEX(INDIRECT(dms_RPT),dms_PRCP_start_row+9) -> 2008 | F48: CRCP_y10 | G48: =INDEX(INDIRECT(dms_RPT),dms_CRCP_start_row+9) -> 2013 | H48: FRCP_y10 | I48: =INDEX(INDIRECT(dms_RPT),dms_FRCP_start_row+9) -> 2018
B49: 1997-98 | C49: 1998 | D49: PRCP_y11 | E49: =INDEX(INDIRECT(dms_RPT),dms_PRCP_start_row+10) -> 2009 | F49: CRCP_y11 | G49: =INDEX(INDIRECT(dms_RPT),dms_CRCP_start_row+10) -> 2014 | H49: FRCP_y11 | I49: =INDEX(INDIRECT(dms_RPT),dms_FRCP_start_row+10) -> 2019
B50: 1998-99 | C50: 1999 | D50: PRCP_y12 | E50: =INDEX(INDIRECT(dms_RPT),dms_PRCP_start_row+11) -> 2010 | F50: CRCP_y12 | G50: =INDEX(INDIRECT(dms_RPT),dms_CRCP_start_row+11) -> 2015 | H50: FRCP_y12 | I50: =INDEX(INDIRECT(dms_RPT),dms_FRCP_start_row+11) -> 2020
B51: 1999-00 | C51: 2000 | D51: PRCP_y13 | E51: =INDEX(INDIRECT(dms_RPT),dms_PRCP_start_row+12) -> 2011 | F51: CRCP_y13 | G51: =INDEX(INDIRECT(dms_RPT),dms_CRCP_start_row+12) -> 2016 | H51: FRCP_y13 | I51: =INDEX(INDIRECT(dms_RPT),dms_FRCP_start_row+12) -> 2021
B52: 2000-01 | C52: 2001 | D52: PRCP_y14 | E52: =INDEX(INDIRECT(dms_RPT),dms_PRCP_start_row+13) -> 2012 | F52: CRCP_y14 | G52: =INDEX(INDIRECT(dms_RPT),dms_CRCP_start_row+13) -> 2017 | H52: FRCP_y14 | I52: =INDEX(INDIRECT(dms_RPT),dms_FRCP_start_row+13) -> 2022
B53: 2001-02 | C53: 2002 | D53: PRCP_y15 | E53: =INDEX(INDIRECT(dms_RPT),dms_PRCP_start_row+14) -> 2013 | F53: CRCP_y15 | G53: =INDEX(INDIRECT(dms_RPT),dms_CRCP_start_row+14) -> 2018 | H53: FRCP_y15 | I53: =INDEX(INDIRECT(dms_RPT),dms_FRCP_start_row+14) -> 2023
B54: 2002-03 | C54: 2003 | D54: PRCP_y16 | E54: =INDEX(INDIRECT(dms_RPT),dms_PRCP_start_row+15) -> 2014 | F54: CRCP_y16 | G54: =INDEX(INDIRECT(dms_RPT),dms_CRCP_start_row+15) -> 2019 | H54: FRCP_y16 | I54: =INDEX(INDIRECT(dms_RPT),dms_FRCP_start_row+15) -> 2024
B55: 2003-04 | C55: 2004
B56: 2004-05 | C56: 2005
B57: 2005-06 | C57: 2006 | E57: CRY - FRY
B58: 2006-07 | C58: 2007 | D58: dms_y1 | E58: =IFERROR(INDEX(INDIRECT(dms_RPT),dms_CRY_start_row),0) -> 2009
B59: 2007-08 | C59: 2008 | D59: dms_y2 | E59: =IFERROR(INDEX(INDIRECT(dms_RPT),dms_CRY_start_row+1),0) -> 2010
B60: 2008-09 | C60: 2009 | D60: dms_y3 | E60: =IFERROR(INDEX(INDIRECT(dms_RPT),dms_CRY_start_row+2),0) -> 2011
B61: 2009-10 | C61: 2010 | D61: dms_y4 | E61: =IFERROR(INDEX(INDIRECT(dms_RPT),dms_CRY_start_row+3),0) -> 2012
B62: 2010-11 | C62: 2011 | D62: dms_y5 | E62: =IFERROR(INDEX(INDIRECT(dms_RPT),dms_CRY_start_row+4),0) -> 2013
B63: 2011-12 | C63: 2012 | D63: dms_y6 | E63: =IFERROR(INDEX(INDIRECT(dms_RPT),dms_CRY_start_row+5),0) -> 2014
B64: 2012-13 | C64: 2013 | D64: dms_y7 | E64: =IFERROR(INDEX(INDIRECT(dms_RPT),dms_CRY_start_row+6),0) -> 2015
B65: 2013-14 | C65: 2014 | D65: dms_y8 | E65: =IFERROR(INDEX(INDIRECT(dms_RPT),dms_CRY_start_row+7),0) -> 2016
B66: 2014-15 | C66: 2015 | D66: dms_y9 | E66: =IFERROR(INDEX(INDIRECT(dms_RPT),dms_CRY_start_row+8),0) -> 2017
B67: 2015-16 | C67: 2016 | D67: dms_y10 | E67: =IFERROR(INDEX(INDIRECT(dms_RPT),dms_CRY_start_row+9),0) -> 2018
B68: 2016-17 | C68: 2017 | D68: dms_y11 | E68: =IFERROR(INDEX(INDIRECT(dms_RPT),dms_CRY_start_row+10),0) -> 2019
B69: 2017-18 | C69: 2018 | D69: dms_y12 | E69: =IFERROR(INDEX(INDIRECT(dms_RPT),dms_CRY_start_row+11),0) -> 2020
B70: 2018-19 | C70: 2019 | D70: dms_y13 | E70: =IFERROR(INDEX(INDIRECT(dms_RPT),dms_CRY_start_row+12),0) -> 2021
B71: 2019-20 | C71: 2020 | D71: dms_y14 | E71: =IFERROR(INDEX(INDIRECT(dms_RPT),dms_CRY_start_row+13),0) -> 2022
B72: 2020-21 | C72: 2021 | D72: dms_y15 | E72: =IFERROR(INDEX(INDIRECT(dms_RPT),dms_CRY_start_row+14),0) -> 2023
B73: 2021-22 | C73: 2022 | D73: dms_y16 | E73: =IFERROR(INDEX(INDIRECT(dms_RPT),dms_CRY_start_row+15),0) -> 2024
B74: 2022-23 | C74: 2023
B75: 2023-24 | C75: 2024
B76: 2024-25 | C76: 2025
B77: 2025-26 | C77: 2026
B78: 2026-27 | C78: 2027
B79: 2027-28 | C79: 2028
B80: 2028-29 | C80: 2029
B81: 2029-30 | C81: 2030
B82: 2030-31 | C82: 2031
B83: 2031-32 | C83: 2032
B84: 2032-33 | C84: 2033
B85: 2033-34 | C85: 2034
B86: 2034-35 | C86: 2035
B87: 2035-36 | C87: 2036
B88: 2036-37 | C88: 2037

Sheet AER ETL (hidden)
B1: AER ETL INFORMATION
B3: USES NAMED RANGES FLAG | C3: yes | D3: dms_Defined_Names_Used
B5: IF THIS IS AN ABC RIN - make sure the the named range CRY is applied and the named range dms_dollar_nom_UOM is applied
B6: IF THIS IS A RESET RIN - make sure the named ranges CRY and dms_dollar_nom_UOM are NOT present in the workbook
B7: FOR ABC RINS THAT SPAN MULTIPLE YEARS - make sure MultiYear Flag is set and final year entered as required
B9: Full trading name | C9: =INDEX(dms_TradingNameFull_List,MATCH(dms_TradingName,dms_TradingName_List)) -> CitiPower | E9: dms_TradingNameFull
B10: Trading name | C10: =dms_TradingName -> CitiPower
A11: Selected here | B11: Model / RIN | C11: CA | D11: dms_Model
A12: Read from Business & other details | B12: Source | C12: =dms_Selected_Source -> Regulatory proposal | D12: dms_Source
B13: Data quality | C13: =dms_Selected_Quality -> Consolidated | D13: dms_DQ_1
B14: Data status | C14: Public | D14: dms_DQ_2
B15: Amendment reason | C15: =dms_Amendment_Text -> . | F15: dms_AmendmentReason
B16: Submission date | C16: =dms_Typed_Submission_Date -> 2020-01-31 | D16: dms_SubmissionDate
A18: Redundant | B18: EBSS - First application of scheme in forthcoming period? | C18: No
A19: Pre-populated from lookup table | B19: Data ingestion data quality | C19: =dms_Selected_Quality -> Consolidated | D19: dms_DataQuality | E19: =IF(dms_DQ_2="Confidential","Consolidated","Public")
B20: Sector | C20: =INDEX(dms_Sector_List,MATCH(dms_TradingName,dms_TradingName_List)) -> Electricity | D20: dms_Sector | E20: =INDEX(dms_Sector_List,MATCH(dms_TradingName,dms_TradingName_List))
B21: Segment | C21: =INDEX(dms_Segment_List,MATCH(dms_TradingName,dms_TradingName_List)) -> Distribution | D21: dms_Segment | E21: =INDEX(dms_Segment_List,MATCH(dms_TradingName,dms_TradingName_List))
B22: Regulatory Year Ending | C22: =dms_RYE_result -> 2018 | D22: dms_RYE | E22: =IF(dms_MultiYear_Flag=1,LEFT(dms_Specified_FinalYear,2)&RIGHT(dms_Specified_FinalYear,2),INDEX(dms_RYE_Formula_Result,MATCH(dms_Model,dms_Model_List)))
B23: Reporting Period Type | C23: =INDEX(dms_RPT_List,MATCH(dms_TradingName,dms_TradingName_List)) -> Calendar | D23: dms_RPT | E23: =INDEX(dms_RPT_List,MATCH(dms_TradingName,dms_TradingName_List))
B24: EB/CA Unit of Measure for Monetary Values | C24: $0s | D24: dms_dollar_nom_UOM | E24: If the cover sheet is attached to an ABC RIN apply the NAMED RANGE to the cell
B25: Security Classification | C25: Public | D25: dms_Classification | E25: Always Public
B26: Jurisdiction | C26: =INDEX(dms_JurisdictionList,MATCH(dms_TradingName,dms_TradingName_List)) -> Vic | D26: dms_Jurisdiction | E26: =INDEX(dms_JurisdictionList,MATCH(dms_TradingName,dms_TradingName_List))
A27: Relevant for PTRM, RFMs and Reset RINS | B27: $ REAL REFERENCES
B28: Does the named range CRY exist in this file? | C28: =IFERROR(CRY,"NO") -> 2009
B29: CRY-1 (last full calendar year before CRY) | C29: =IFERROR(IF(dms_RPT="calendar",CRY-1,LEFT(CRY,4)),"CRY not present") -> 2008 | D29: dms_Cal_Year_B4_CRY | E29: '=IF(dms_RPT="financial",VALUE(LEFT(dms_SingleYear_FinalYear_Result,4)),VALUE(LEFT(dms_SingleYear_FinalYear_Result,4)-1))
B30: Dollar $ real month | C30: =INDEX(dms_RPTMonth_List,MATCH(dms_TradingName,dms_TradingName_List)) -> December | D30: dms_RPTMonth | E30: =INDEX(dms_RPTMonth_List,MATCH(dms_TradingName,dms_TradingName_List))
B31: Dollar $ real (the last month before the FRCP_y1) | C31: =IF(dms_SingleYearModel="yes",CONCATENATE(dms_RPTMonth)&" "&VALUE((LEFT(CRY,2))&RIGHT(CRY,2)),CONCATENATE(dms_RPTMonth)&" "&dms_DollarReal_year) -> December 2009 | D31: dms_DollarReal | E31: =IF(SUM(dms_SingleYear_Model)>0,CONCATENATE(dms_RPTMonth)&" "&VALUE((LEFT(CRY,2))&RIGHT(CRY,2)),CONCATENATE(dms_RPTMonth)&" "&VALUE((LEFT(dms_RYE,2)&RIGHT(dms_RYE,2))))
B32: Dollar $ real previous year (PRCP_y5) | C32: =IF(dms_SingleYearModel="yes",CONCATENATE(dms_RPTMonth)&" "&VALUE((LEFT(CRY,2))&RIGHT(CRY,2)),CONCATENATE(dms_RPTMonth)&" "&dms_Previous_DollarReal_year) -> December 2009 | D32: dms_DollarReal_Prev | E32: =IF(SUM(dms_SingleYear_Model)>0,CONCATENATE(dms_RPTMonth)&" "&VALUE(((LEFT(CRY,2))&RIGHT(CRY,2))-1),CONCATENATE(dms_RPTMonth)&" "&VALUE(((LEFT(dms_CRCP_FirstYear_Result,2)&RIGHT(dms_CRCP_FirstYear_Result,2))))-1)
B33: PTRM/ RFMs
B34: Form of control | C34: =INDEX(dms_FormControl_List,MATCH(dms_TradingName,dms_TradingName_List)) -> Revenue cap | D34: dms_FormControl | E34: =INDEX(dms_FormControl_List,MATCH(dms_TradingName,dms_TradingName_List))
A35: All potential values for Regulatory Years or RYEs as calculated | B35: This block works out the various RYE's for ALL RIN types and MODELS
B36: dms_start_year | C36: =FRCP_y1 -> 2009 | D36: =FRCP_y1 | E36: FRCP_y1 from cover sheet
B37: dms_CRY_start_year | C37: =IFERROR(CRY,CRCP_y4) -> 2009 | D37: =IFERROR(CRY,CRCP_y4)
B38: dms_CRY_start_row | C38: =IFERROR(MATCH(dms_CRY_start_year,INDIRECT(dms_RPT),0),0) -> 22 | D38: =IFERROR(MATCH(dms_CRY_start_year,INDIRECT(dms_RPT),0),0)
B39: dms_FRCP_start_row | C39: =MATCH(dms_start_year,INDIRECT(dms_RPT),0) -> 22 | D39: =MATCH(dms_start_year,INDIRECT(dms_RPT),0) | E39: Uses FRCP_y1 as a start reference
B40: dms_CRCP_start_row | C40: =dms_FRCP_start_row-dms_CRCPlength_Num -> 17 | D40: =dms_FRCP_start_row-dms_CRCPlength_Num | E40: Uses the value in dms_CRCPlength_Num
B41: dms_PRCP_start_row | C41: =dms_FRCP_start_row-dms_CRCPlength_Num-dms_PRCPlength_Num -> 12 | D41: =dms_FRCP_start_row-dms_CRCPlength_Num-dms_PRCPlength_Num | E41: Uses the value in dms_CRCPlength_Num and dms_PRCPlength_Num
B42: dms_RYE_start_row | C42: =dms_FRCP_start_row+(dms_FRCPlength_Num-1) -> 26 | D42: =dms_FRCP_start_row+(dms_FRCPlength_Num-1) | E42: Uses the value in dms_FRCPlength_Num-1
B43: FRCP_start_year | C43: =INDEX(INDIRECT(dms_RPT),dms_FRCP_start_row) -> 2009 | D43: =INDEX(INDIRECT(dms_RPT),dms_FRCP_start_row) | E43: Converts the FRCP start row to display the year
B44: CRCP_start_year | C44: =INDEX(INDIRECT(dms_RPT),dms_CRCP_start_row) -> 2004 | D44: =INDEX(INDIRECT(dms_RPT),dms_CRCP_start_row) | E44: Converts the CRCP start row to display the year
B45: PRCP_start_year | C45: =INDEX(INDIRECT(dms_RPT),dms_PRCP_start_row) -> 1999 | D45: =INDEX(INDIRECT(dms_RPT),dms_PRCP_start_row) | E45: Converts the PRCP start row to display the year
B46: FRCP_final_year | C46: =INDEX(INDIRECT(dms_RPT),dms_FRCP_start_row+dms_FRCPlength_Num-1) -> 2013 | D46: =INDEX(INDIRECT(dms_RPT),dms_FRCP_start_row+dms_FRCPlength_Num-1) | E46: Finds the FRCP final year
B47: CRCP_final_year | C47: =INDEX(INDIRECT(dms_RPT),dms_CRCP_start_row+dms_CRCPlength_Num-1) -> 2008 | D47: =INDEX(INDIRECT(dms_RPT),dms_CRCP_start_row+dms_CRCPlength_Num-1) | E47: Finds the CRCP final year
B48: PRCP_final_year | C48: =INDEX(INDIRECT(dms_RPT),dms_PRCP_start_row+dms_FRCPlength_Num-1) -> 2003 | D48: =INDEX(INDIRECT(dms_RPT),dms_PRCP_start_row+dms_FRCPlength_Num-1) | E48: Finds the PRCP final year
B49: dms_Reset_final_year | C49: =INDEX(INDIRECT(dms_RPT),dms_RYE_start_row) -> 2013 | D49: =INDEX(INDIRECT(dms_RPT),dms_RYE_start_row) | E49: For Resets and PTRM/RFMs (same as FRCP_final_year)
B50: dms_SpecifiedYear_final_year | C50: =FRY -> 2018 | D50: =FRY | E50: FRY from cover sheet
B51: dms_DollarReal_year | C51: =LEFT(CRCP_final_year,2)&RIGHT(CRCP_final_year,2) -> 2008 | D51: =LEFT(CRCP_final_year,2)&RIGHT(CRCP_final_year,2) | E51: Uses the value in CRCP_final_year
B52: dms_Previous_DollarReal_year | C52: =LEFT(PRCP_final_year,2)&RIGHT(PRCP_final_year,2) -> 2003 | D52: =LEFT(PRCP_final_year,2)&RIGHT(PRCP_final_year,2) | E52: Uses the value in PRCP_final_year
B53: dms_CRY_RYE | C53: =IFERROR(LEFT(CRY,2)&RIGHT(CRY,2),0) -> 2009 | D53: =IFERROR(LEFT(CRY,2)&RIGHT(CRY,2),0) | E53: For ABC single year RINS
B54: dms_Reset_RYE | C54: =IF(dms_Model_Span>1,IF(dms_Model="RFM",(LEFT(dms_DollarReal_year,2)&RIGHT(dms_DollarReal_year,2)),(LEFT(dms_Reset_final_year,2)&RIGHT(dms_Reset_final_year,2))),0) -> 0 | D54: =IF(dms_Model_Span>1,IF(dms_Model="RFM",(LEFT(dms_DollarReal_year,2)&RIGHT(dms_DollarReal_year,2)),(LEFT(dms_Reset_final_year,2)&RIGHT(dms_Reset_final_year,2))),0) | E54: If model span > 1 then uses dms_Reset_RYE otherwise it's a multi year ABC and uses dms_Specified_RYE
B55: dms_Specified_RYE | C55: =IF(dms_MultiYear_ResponseFlag="Yes",(LEFT(dms_Specified_FinalYear,2)&RIGHT(dms_Specified_FinalYear,2)),0) -> 2018 | D55: =IF(dms_MultiYear_ResponseFlag="Yes",(LEFT(dms_Specified_FinalYear,2)&RIGHT(dms_Specified_FinalYear,2)),0) | E55: If multi year ABC - uses dms_Specified_FinalYear
B56: dms_Model_Span | C56: =INDEX(dms_Model_Span_List,MATCH(dms_Model,dms_Model_List)) -> 1 | D56: =INDEX(dms_Model_Span_List,MATCH(dms_Model,dms_Model_List)) | E56: A result of 5 is used to signify that it is more than 1 year span
B57: dms_RYE_result | C57: =IF(dms_MultiYear_ResponseFlag="yes",dms_Specified_RYE,(IF(dms_Model_Span>1,dms_Reset_RYE,dms_CRY_RYE))) -> 2018 | D57: =IF(dms_MultiYear_ResponseFlag="yes",dms_Specified_RYE,(IF(dms_Model_Span>1,dms_Reset_RYE,dms_CRY_RYE))) | E57: Nested IF - feeds into dms_RYE
B58: dms_Reset_Span | C58: =IF(dms_Reset_RYE>0,CONCATENATE(FRCP_y1," to ",FRCP_final_year),0) -> 0 | D58: =IF(dms_Reset_RYE>0,CONCATENATE(FRCP_y1," to ",FRCP_final_year),0) | E58: Reset span of years as text
B59: dms_SpecifiedYear_Span | C59: =IF(dms_Specified_RYE>0,CONCATENATE(CRY," to ",dms_Specified_FinalYear),0) -> 2009 to 2018 | D59: =IF(dms_Specified_RYE>0,CONCATENATE(CRY," to ",dms_Specified_FinalYear),0) | E59: Multi year ABC span of years as text
B60: dms_Header_Span | C60: =IF(dms_MultiYear_Flag=1,dms_SpecifiedYear_Span,IF(dms_Model_Span>1,dms_Reset_Span,CRY)) -> 2009 to 2018 | D60: =IF(dms_MultiYear_Flag=1,dms_SpecifiedYear_Span,IF(dms_Model_Span>1,dms_Reset_Span,CRY)) | E60: NESTED IF - for Sheet Headers
B61: ABC RINS THAT SPAN MULTIPLE YEARS
B62: This is a multi year ABC RIN? | C62: Yes
C63: =IF(dms_MultiYear_ResponseFlag="No",0,1) -> 1 | D63: dms_MultiYear_Flag | E63: This is set from the answer provided above
C64: =IF(dms_MultiYear_Flag=1,FRY,"not a Multiple year submission") -> 2018 | D64: dms_Specified_FinalYear | E64: The result here is returned to dms_CRCP_FinalYear_Result if response to Q in C73 is "yes" and dms_MultiYear_Flag is set to 1
B65: Start year for 5.2 in Multi year ABC RINS | C65: =IFERROR(IF(dms_MultiYear_Flag=1,FRY,CRY),"not an ABC") -> 2018 | D65: dms_0502_Inst_Year | E65: =IF(dms_MultiYear_Flag=1,FRY,CRY) | G65: For single year RINS this is CRY - multi year RINS need to start a the end of the span of years (ie. FRY)
B66: WHAT IS THE RYE?
B67: Reg Period Lengths
B68: PRCP length in years | C68: =INDEX(dms_PRCPlength_List,MATCH(dms_TradingName,dms_TradingName_List)) -> 5 | D68: dms_PRCPlength_Num | E68: =INDEX(dms_PRCPlength_List,MATCH(dms_TradingName,dms_TradingName_List))
B69: CRCP length in years | C69: =INDEX(dms_CRCPlength_List,MATCH(dms_TradingName,dms_TradingName_List)) -> 5 | D69: dms_CRCPlength_Num | E69: =INDEX(dms_CRCPlength_List,MATCH(dms_TradingName,dms_TradingName_List))
B70: FRCP length in years | C70: =INDEX(dms_FRCPlength_List,MATCH(dms_TradingName,dms_TradingName_List)) -> 5 | D70: dms_FRCPlength_Num | E70: =INDEX(dms_FRCPlength_List,MATCH(dms_TradingName,dms_TradingName_List))
B71: Single year RIN?
B72: Single Year ABC RIN ? | C72: =IF(dms_Model="EB",1,0) -> 0 | D72: dms_EB
C73: =IF(dms_Model="CA",1,0) -> 1 | D73: dms_CA | E73: =dms_SingleYear_Model
C74: =IF(dms_Model="ARR",1,0) -> 0 | D74: dms_ARR
B75: Is this a single Year ABC RIN? | C75: =IF(SUM(dms_SingleYear_Model)=1,"yes","no") -> yes | D75: dms_SingleYearModel | E75: =IF(SUM(dms_SingleYear_Model)=1,"yes","no")
B76: Single Year Final Year Result | C76: =IF(AND(dms_SingleYearModel="yes",dms_MultiYear_Flag=0),CRY,0) -> 0 | D76: dms_SingleYear_FinalYear_Result | E76: =IFERROR(IF(SUM(dms_SingleYear_Model)<>0,(INDIRECT(dms_SingleYear_FinalYear_Ref)),"not a single year RIN"),"CRY not present")
B77: Multi year RIN?
B79: Multi Year Reset/Model? | C79: =IF(dms_Model_Span>1,"yes","no") -> no
B80: Final year result for Reset/Model | C80: =IF(dms_Model_Span>1,dms_Reset_final_year,0) -> 0 | D80: dms_MultiYear_FinalYear_Result | E80: dms_CRCP_FinalYear_Result
B82: Multi Year ABC RIN? | C82: =IF(dms_MultiYear_Flag=1,"yes","no") -> yes | D82: dms_MultiYear_ABC_RIN
B83: Final year result for ABC multi year | C83: =IF(dms_MultiYear_Flag=1,C50,0) -> 2018
B85: EB RINS
B86: Calendar Year for table 3.6 data | C86: =IFERROR(IF(dms_Segment="Transmission",dms_Cal_Year_B4_CRY,CRY),"CRY not present") -> 2009 | D86: dms_0306_Year | E86: =IF(dms_Segment="Transmission",dms_Cal_Year_B4_CRY,CRY)
B87: CA RINS
B88: Find how many rows in tables 6.3 sustained interruptions? | E88: dms_060301_MaxRows only returns a valid value when cover sheet is attached to a CA file
C89: =IF(dms_Model<>"CA","not a CA","Is a CA") -> Is a CA | E89: =IF(dms_Model<>"CA","not a CA","Is a CA")
B90: dms_060301_Avg_Duration_Sustained_Int_Values present? | C90: =IFERROR(IF(INDEX(dms_060301_Avg_Duration_Sustained_Int_Values,1,1)<>"","yes","no"),"no") -> no | D90: dms_060301_checkvalue | E90: =IFERROR(IF(INDEX(dms_060301_Avg_Duration_Sustained_Int_Values,1,1)<>"","yes","no"),"no")
C91: =IF(AND(dms_Model="CA",(dms_060301_checkvalue="no")),"error - NR not present","no errors") -> error - NR not present | E91: =IF(AND(dms_Model="CA",(dms_060301_checkvalue="no")),"error - NR not present","no errors")
B92: Table 6.3.1 - last row reference | C92: =IFERROR(IF(dms_Model="CA",LOOKUP(2,1/(dms_060301_Avg_Duration_Sustained_Int_Values<>""),(ROW(dms_060301_Avg_Duration_Sustained_Int_Values))),"not a CA"),"6.3 not present") -> 6.3 not present | D92: dms_060301_LastRow | E92: =IFERROR(IF(dms_Model="CA",LOOKUP(2,1/(dms_060301_Avg_Duration_Sustained_Int_Values<>""),(ROW(dms_060301_Avg_Duration_Sustained_Int_Values))),"not a CA"),"6.3 not present")
B93: Table 6.3.1 - max number rows | C93: =IFERROR(IF(dms_Model="CA",(dms_060301_LastRow-15),"not a CA"),"error") -> error | D93: dms_060301_MaxRows | E93: =IFERROR(IF(dms_Model="CA",(dms_060301_LastRow-15),"not a CA"),"error")
B94: Table 6.6.3 - Public lighting repair - no. business days | C94: =INDEX(dms_663_List,MATCH(dms_TradingName,dms_TradingName_List)) -> 2 | D94: dms_663 | E94: =INDEX(dms_663_List,MATCH(dms_TradingName,dms_TradingName_List))
B95: ARR or RESET RINS
B96: How many rows in tables 6.1 or 6.7? (leap year?) | C96: insert dms_LeapYear NR if required | E96: 'dms_LeapYear is used to determine dms_060701_Max_Rows BUT it is only found on worksheet 6.1 or 6.7 and the date value in the cell is used to determine whether it is a leap year
B97: Is dms_LeapYear named range present? | C97: =IFERROR(IF(dms_LeapYear,"yes"),"no") -> no
B98: Table 6.7.1 - includes a leap year? | C98: =IFERROR(IF(MONTH(DATE(YEAR(dms_LeapYear),2,29))=2,"is a leap year","not a leap year"), "dms_LeapYear not present") -> dms_LeapYear not present | D98: dms_LeapYear_Result | E98: =IFERROR(IF(MONTH(DATE(YEAR(dms_LeapYear),2,29))=2,"is a leap year","not a leap year"),"dms_LeapYear not present")
B99: MaxRows if Reset and leap year | C99: =IF(dms_LeapYear_Result="is a leap year",1827,1826) -> 1826 | D99: dms_060701_Reset_MaxRows | E99: =IF(dms_LeapYear_Result="is a leap year",1827,1826) | H99: number of days present in Reset RIN table
B100: MaxRows if ARR and leap year | C100: =IF(dms_LeapYear_Result="is a leap year",366,365) -> 365 | D100: dms_060701_ARR_MaxRows | E100: =IF(dms_LeapYear_Result="is a leap year",366,365) | H100: number of days present in ARR RIN table
B101: Table 6.7.1 - Max Rows (leap year/ non leap year) | C101: =IF(dms_Model="ARR",dms_060701_ARR_MaxRows,IF(dms_Model="Reset",dms_060701_Reset_MaxRows,"not a relevant RIN type")) -> not a relevant RIN type | D101: dms_060701_MaxRows | E101: =IF(dms_Model="ARR",dms_060701_ARR_MaxRows,IF(dms_Model="Reset",dms_060701_Reset_MaxRows,"not a relevant RIN type"))
B102: How many columns in 6.7? (4 or 5 feeder categories) | C102: =IF(dms_FifthFeeder_flag_NSP="NO","This NSP has only 4 feeder categories","This NSP has 5 feeder categories") -> This NSP has only 4 feeder categories
B103: Table 6.7.1 - Last column (# of feeder categories > 4) | C103: =IF(dms_FifthFeeder_flag_NSP="NO",10,12) -> 10 | D103: dms_060701_MaxCols | E103: =IF(dms_FifthFeeder_flag_NSP="NO",8,10)
B104: Table 6.7.1 - Number of offset rows | C104: =IF(dms_Model="ARR",15,9) -> 9 | D104: dms_060701_OffsetRows | E104: =IF(dms_Model="ARR",15,9)
B105: Start date for telephone answering in 6.1 or 6.7? | E105: Using 060101 as naming standard not 060701 for start dates
B106: Table 6.1.1 and 6.7.1 - Start Date as Text | C106: =IF(dms_SingleYearModel="yes",(CONCATENATE(IF(LEN(CRY)=4,"1-Jan-","1-Jul-"),LEFT(CRY,4))),(CONCATENATE(IF(LEN(PRCP_y4)=4,"1-Jan-","1-Jul-"),LEFT(PRCP_y4,4)))) -> 1-Jan-2009 | D106: dms_060101_StartDateTxt | E106: =IF(SUM(dms_SingleYear_Model)>1,(CONCATENATE(IF(LEN(CRY)=4,"1-Jan-","1-Jul-"),LEFT(CRY,4))),(CONCATENATE(IF(LEN(CRCP_y4)=4,"1-Jan-","1-Jul-"),LEFT(CRCP_y4,4))))
B107: Table 6.1.1 and 6.7.1 - Start Date as Date Value | C107: =DATEVALUE(dms_060701_StartDateTxt) -> 39814 | D107: dms_060101_StartDateVal | E107: =DATEVALUE(dms_060701_StartDateTxt)
B108: ARRs
B109: How many rows in table 6.8? | C109: insert dms_060801_StartCell NR if required | E109: dms_060801_StartCell is only found on worksheet 6.8 and is used to determine the starting date for the date range
B110: Is dms_060801_StartCell named range present? | C110: yes | E110: =IFERROR(IF((ROW(dms_060801_StartCell)-1)=1,"yes","yes"),"no")
B111: Table 6.8 - Number of offset rows | C111: 12 | D111: dms_0608_OffsetRows | E111: =IFERROR(IF(dms_Model="ARR",(ROW(dms_060801_StartCell)-1),"not an ARR"),"6.8 error")
B112: Table 6.8 - Last row | C112: 0 | D112: dms_0608_LastRow | E112: =IFERROR(IF(dms_060801_StartCell<>"",IF(dms_Model="ARR",(LOOKUP(2,1/(dms_060801_01_Values<>""),(ROW(dms_060801_01_Values)))),"not an ARR"),0),"0")
B113: Table 6.8 - MaxRows | C113: =IFERROR(IF(dms_Model="ARR",(MAX(0,dms_0608_LastRow-dms_0608_OffsetRows)),"not an ARR"),"0") -> not an ARR | D113: dms_060801_MaxRows | E113: =IFERROR(IF(dms_Model="ARR",(MAX(0,dms_0608_LastRow-dms_0608_OffsetRows)),"not an ARR"),"0")
B114: TNSP RESET RINS
B115: Table 7.9.4 only appears in TNSPs Reset RIN
B116: Table 7.9.4 - first year | C116: =LEFT(PRCP_y3,4) -> 2001 | D116: dms_070904_Start_Year | E116: =LEFT(PRCP_y3,4)
B118: MISC
B119: Distribution Determination Reference | C119: =INDEX(dms_DeterminationRef_List,MATCH(dms_TradingName,dms_TradingName_List)) -> 2016-20 Distribution Determination | D119: dms_DeterminationRef
B120: Public lighting NSP? | C120: =INDEX(dms_Public_Lighting_List,MATCH(dms_TradingName,dms_TradingName_List)) -> YES | D120: dms_Public_Lighting | E120: =INDEX(dms_Public_Lighting_List,MATCH(dms_TradingName,dms_TradingName_List))
B121: CBD Feeder for this business | C121: =INDEX(dms_CBD_flag,MATCH(dms_TradingName,dms_TradingName_List)) -> YES | D121: dms_CBD_flag_NSP
B122: Urban Feeder for this business | C122: =INDEX(dms_Urban_flag,MATCH(dms_TradingName,dms_TradingName_List)) -> YES | D122: dms_Urban_flag_NSP
B123: Short rural Feeder for this business | C123: =INDEX(dms_ShortRural_flag,MATCH(dms_TradingName,dms_TradingName_List)) -> NO | D123: dms_ShortRural_flag_NSP
B124: Long rural Feeder for this business | C124: =INDEX(dms_LongRural_flag,MATCH(dms_TradingName,dms_TradingName_List)) -> NO | D124: dms_LongRural_flag_NSP
B125: Fifth Feeder Category (eg. TasNetworks (D)) | C125: =INDEX(dms_FeederType_5_flag,MATCH(dms_TradingName,dms_TradingName_List)) -> NO | D125: dms_FifthFeeder_flag_NSP | E125: =INDEX(dms_FeederType_5_flag,MATCH(dms_TradingName,dms_TradingName_List))
B127: DISCARD FILES
B128: discard this record? | C128: NO | D128: dms_DISCARD | E128: If record is to be discarded from DB set this flag to YES
B130: SUBSET FILES
B131: Is this Submission File a Subset File | C131: NO | D131: dms_Partial
B134: REGULATORY YEARS FOR MULTI RYE SUBMISSIONS
B135: Multiple RYE flag | C135: YES | D135: dms_Multi_RYE_flag
C136: Manually specify RYE | D136: Named ranges to apply
C137: 2013 | D137: dms_RYE_01
C138: 2014 | D138: dms_RYE_02
C139: 2015 | D139: dms_RYE_03
C140: 2016 | D140: dms_RYE_04
C141: 2017 | D141: dms_RYE_05
C142: 2018 | D142: dms_RYE_06
C143: 2019 | D143: dms_RYE_07
C144: 2020 | D144: dms_RYE_08
C145: 2021 | D145: dms_RYE_09

Sheet Instructions
B2: =CONCATENATE(dms_Sector," ",dms_Segment," ", "Network Service Provider") -> Electricity Distribution Network Service Provider
B3: New Historical RIN Template - Calendar Years
B4: =CONCATENATE("This template is to be used by ",dms_TradingNameFull," to fulfil its reporting obligations to the AER.") -> This template is to be used by CitiPower to fulfil its reporting obligations to the AER.
B5: INSTRUCTIONS
B6: GENERAL | C6: Complete the Business & other details worksheet before entering data or values in any other worksheets. The Business & other details worksheet is linked to other worksheets within the workbook and automatically generates certain column headings and conditional formatting.
B8: CONFIDENTIAL INFORMATION | C8: Please use the macro at the top of each worksheet to identify confidential information in the confidential workbook.
C9: -Do this by selecting the cell or cells that contain confidential information and then run the Mark selection as CONFIDENTIAL macro. This will format the cells a specific colour that is identified by the AER's database which in turn marks that information as confidential. -To reverse this, select the cell or cells and run the Return selection to NON-CONFIDENTIAL macro.
B11: RESPONSES | C11: Please return four (4) files to the AER: 1. A confidential version which must contain a complete set of all responses with confidential information marked using the Mark selection CONFIDENTIAL macro and which has been completed using the locked template file provided by the AER. 2. An actual and an estimate version with confidential information marked using the Mark selection CONFIDENTIAL macro and which has been completed using the locked template file provided by the AER. 3. A public version with confidential information either removed completely or aggregated in some form together with writtten consent to disclose the public version of the response. Use the drop down box on the Business and other details worksheet to identify the file as either confidential ('consolidated') or public.
B13: AMENDMENTS | C13: If an NSP wishes to correct data previously submitted to the AER it should resubmit that data using the original completed submission as the starting point. Please make any necessary changes to the data. Data that is not being amended should be left unchanged. NSPs must identify the reason for the amendments in the Amendment Reason box on the Business and other details worksheet. NSPs may provide further details regarding any amendments in the Amendments worksheet. .
C14: NSP may use Amended Data macro to highlight cells that contain amended data. NB: if data is also CONFIDENTIAL, re-apply the Confidentiality macro after applying the Amended macro
C15: Please resubmit two (2) files - a confidential version and a public version of the amended submission to the AER
B17: UNITS OF MEASURE | C17: All amounts are to be unrounded and reported on a one for one basis: that is 1000 is to be entered as '1000'. Applicable units of measure may be identified in the table column headings or row descriptors.
B19: INPUT / NON-INPUT CELLS
D20: Yellow = Input cell (mandatory)
D21: Darker yellow = input cell (mandatory)
D22: Orange = input cell (if data available)
D23: Grey = Not applicable/No inputs required
D24: PLEASE DO NOT ENTER TEXT into cells that are to contain numeric data.
B27: NAVIGATION | C27: Many tables in the worksheets have been "grouped" to allow for easy navigation. To ungroup or group data use the outline symbols in the left margin (for Row groupings) or above the columns (for column groupings).

Sheet Contents
D1: =INDEX(dms_Worksheet_List,MATCH(dms_Model,dms_Model_List)) -> NEW HISTORICAL - CALENDAR YEARS
D2: =INDEX(dms_TradingNameFull_List,MATCH(dms_TradingName,dms_TradingName_List)) -> CitiPower
D3: =dms_Header_Span -> 2009 to 2018
D6: CONTENTS
D8: SUBMISSION | E8: Business & other details
D10: EXPENDITURE | E10: 2.2 Repex
E11: 2.5 Connections
E12: 2.6 Non-network
E13: 2.10 Network overheads
E14: 2.11 Labour
D16: FINANCIAL | E16: 8.2 Capex

Sheet Business & other details
V1: =INDEX(dms_Worksheet_List,MATCH(dms_Model,dms_Model_List)) -> NEW HISTORICAL - CALENDAR YEARS
V2: =INDEX(dms_TradingNameFull_List,MATCH(dms_TradingName,dms_TradingName_List)) -> CitiPower
V3: =dms_Header_Span -> 2009 to 2018
V4: BUSINESS & OTHER DETAILS
V6: INSTRUCTIONS
V7: Complete the following business details regulatory template before entering data or values in any other regulatory template. This regulatory template is linked to other cells within the spreadsheet and automatically generates column headings and conditional formatting to distinguish business specific input and non-input cells.
Q9: SUBMISSION PARTICULARS INPUT SHEET
V12: ENTITY DETAILS
V14: Business Name
V16: Short name | AL16: CitiPower
V17: ACN/ABN | AL17: =INDEX(dms_ABN_List,MATCH(dms_TradingName,dms_TradingName_List)) -> 76064651056
V21: Business Address | BQ21: Postal Address
V23: Address 1 | AL23: =INDEX(dms_Addr1_List,MATCH(dms_TradingName,dms_TradingName_List)) -> 40 Market Street | BI23: Address 1 | BQ23: =INDEX(dms_PAddr1_List,MATCH(dms_TradingName,dms_TradingName_List)) -> Locked Bag 14090
V24: Address 2 | AL24: =IF(ISBLANK(INDEX(dms_Addr2_List,MATCH(dms_TradingName,dms_TradingName_List))),"",(INDEX(dms_Addr2_List,MATCH(dms_TradingName,dms_TradingName_List)))) ->  | BI24: Address 2 | BQ24: =IF(ISBLANK(INDEX(dms_PAddr2_List,MATCH(dms_TradingName,dms_TradingName_List))),"",(INDEX(dms_PAddr2_List,MATCH(dms_TradingName,dms_TradingName_List)))) -> 
V25: Suburb | AL25: =INDEX(dms_Suburb_List,MATCH(dms_TradingName,dms_TradingName_List)) -> MELBOURNE | BI25: Suburb | BQ25: =INDEX(dms_PSuburb_List,MATCH(dms_TradingName,dms_TradingName_List)) -> MELBOURNE
V26: State | AL26: =INDEX(dms_State_List,MATCH(dms_TradingName,dms_TradingName_List)) -> Vic | AV26: Post code | BI26: State | BQ26: =INDEX(dms_PState_List,MATCH(dms_TradingName,dms_TradingName_List)) -> Vic | CA26: Post code
BA28: `
V30: Contact Names
V32: Name | AL32: Brent Cleeve | BI32: Name
V33: Phone | AL33: (03) 9683 4465 | BI33: Phone
V34: Email | AL34: bcleeve@powercor.com.au | BI34: Email
Q39: REGULATORY CONTROL PERIODS
Z42: Forthcoming period | AL42: 2009 | AU42: =FRCP_y2 -> 2010 | BD42: =FRCP_y3 -> 2011 | BM42: =FRCP_y4 -> 2012 | BV42: =FRCP_y5 -> 2013
AL43: =FRCP_y6 -> 2014 | AU43: =FRCP_y7 -> 2015 | BD43: =FRCP_y8 -> 2016 | BM43: =FRCP_y9 -> 2017 | BV43: =FRCP_y10 -> 2018
AL44: =FRCP_y11 -> 2019 | AU44: =FRCP_y12 -> 2020 | BD44: =FRCP_y13 -> 2021 | BM44: =FRCP_y14 -> 2022 | BV44: =FRCP_y15 -> 2023
X46: RESETS | Z46: Current period | AL46: =CRCP_y1 -> 2004 | AU46: =CRCP_y2 -> 2005 | BD46: =CRCP_y3 -> 2006 | BM46: =CRCP_y4 -> 2007 | BV46: =CRCP_y5 -> 2008
AL47: =CRCP_y6 -> 2009 | AU47: =CRCP_y7 -> 2010 | BD47: =CRCP_y8 -> 2011 | BM47: =CRCP_y9 -> 2012 | BV47: =CRCP_y10 -> 2013
AL48: =CRCP_y11 -> 2014 | AU48: =CRCP_y12 -> 2015 | BD48: =CRCP_y13 -> 2016 | BM48: =CRCP_y14 -> 2017 | BV48: =CRCP_y15 -> 2018
Z50: Previous period | AL50: =PRCP_y1 -> 1999 | AU50: =PRCP_y2 -> 2000 | BD50: =PRCP_y3 -> 2001 | BM50: =PRCP_y4 -> 2002 | BV50: =PRCP_y5 -> 2003
AL51: =PRCP_y6 -> 2004 | AU51: =PRCP_y7 -> 2005 | BD51: =PRCP_y8 -> 2006 | BM51: =PRCP_y9 -> 2007 | BV51: =PRCP_y10 -> 2008
AL52: =PRCP_y11 -> 2009 | AU52: =PRCP_y12 -> 2010 | BD52: =PRCP_y13 -> 2011 | BM52: =PRCP_y14 -> 2012 | BV52: =PRCP_y15 -> 2013
Z54: Commencing year | AL54: 2009
X55: ANNUAL RINS
Z56: Final year | AL56: 2018
Q60: SUBMISSION DETAILS
Z62: RIN type | AL62: =INDIRECT(dms_Model) -> Category Analysis
Z64: Source | AL64: Regulatory proposal
X66: THIS FILE | Z66: Data Quality | AL66: Consolidated
Z68: Confidentiality Status | AL68: Public
Z70: Amended RIN Amendment Reason | AL70: .
Z74: Submission Date | AL74: 2020-01-31 | BD74: Please enter date this file submitted to AER

Sheet 2.2 Repex
B1: =INDEX(dms_Worksheet_List,MATCH(dms_Model,dms_Model_List)) -> NEW HISTORICAL - CALENDAR YEARS
B2: =INDEX(dms_TradingNameFull_List,MATCH(dms_TradingName,dms_TradingName_List)) -> CitiPower
B3: =dms_Header_Span -> 2009 to 2018
B4: 2.2 REPEX
B7: EXPENDITURE
E8: EXPENDITURE ($0's)
B9: ASSET GROUP | C9: ASSET CATEGORY | E9: =dms_y1 -> 2009 | F9: =dms_y2 -> 2010 | G9: =dms_y3 -> 2011 | H9: =dms_y4 -> 2012 | I9: =dms_y5 -> 2013 | J9: =dms_y6 -> 2014 | K9: =dms_y7 -> 2015 | L9: =dms_y8 -> 2016 | M9: =dms_y9 -> 2017 | N9: =dms_y10 -> 2018
B10: STAKING WOODEN POLES BY: HIGHEST OPERATING VOLTAGE | C10: ˂ = 1 Kv | D10: for year wooden pole staked | E10: 201093.2476 | F10: 152165.7895 | G10: 106154.4803 | H10: 211352.6316 | I10: 279998.3368 | J10: 314245.1613 | K10: 179756.5611 | L10: 144127.5229 | M10: 166895.0267 | N10: 26072.92302
C11: > 1 kV & < = 11 kV | D11: for year wooden pole staked | E11: 54533.76206 | F11: 55985.52632 | G11: 69032.97491 | H11: 78192.73183 | I11: 116961.3306 | J11: 114270.9677 | K11: 81472.39819 | L11: 96463.30275 | M11: 69747.17532 | N11: 11365.12029
C12: ˃ 11 kV & < = 22 kV | D12: for year wooden pole staked | E12: 1704.180064 | F12: 2153.289474 | G12: 2605.017921 | H12: 1548.370927 | I12: 1772.141372 | J12: 1428.387097 | K12: 1293.21267 | L12: 0 | M12: 0 | N12: 0
C13: > 22 kV & < = 66 kV | D13: for year wooden pole staked | E13: 7668.810289 | F13: 7895.394737 | G13: 3907.526882 | H13: 17806.26566 | I13: 27468.19127 | J13: 12855.48387 | K13: 23277.82805 | L13: 6809.174312 | M13: 13700.33801 | N13: 4011.218926
C14: > 66 kV & < = 132 kV | D14: for year wooden pole staked | E14: 0 | F14: 0 | G14: 0 | H14: 0 | I14: 0 | J14: 0 | K14: 0 | L14: 0 | M14: 0 | N14: 0
C15: > 132 kV | D15: for year wooden pole staked | E15: 0 | F15: 0 | G15: 0 | H15: 0 | I15: 0 | J15: 0 | K15: 0 | L15: 0 | M15: 0 | N15: 0
B16: STAKED POLE REPLACED WITH NEW POLE BY: HIGHEST OPERATING VOLTAGE | C16: ˂ = 1 Kv | D16: for year wooden pole staked | E16: 0 | F16: 11356.05871 | G16: 13336.50621 | H16: 0 | I16: 84192.8646 | J16: 120150.0423 | K16: 262041.711 | L16: 80145.2268 | M16: 109563.2667 | N16: 37312.80267
C17: > 1 kV & < = 11 kV | D17: for year wooden pole staked | E17: 0 | F17: 0 | G17: 0 | H17: 0 | I17: 42096.4323 | J17: 0 | K17: 145578.7284 | L17: 64116.18144 | M17: 15651.89524 | N17: 18656.40133
C18: ˃ 11 kV & < = 22 kV | D18: for year wooden pole staked | E18: 0 | F18: 0 | G18: 0 | H18: 0 | I18: 0 | J18: 0 | K18: 0 | L18: 0 | M18: 0 | N18: 0
C19: > 22 kV & < = 66 kV | D19: for year wooden pole staked | E19: 0 | F19: 0 | G19: 0 | H19: 0 | I19: 0 | J19: 0 | K19: 34500.45953 | L19: 0 | M19: 20023.29669 | N19: 11933.46407
C20: > 66 kV & < = 132 kV | D20: for year wooden pole staked | E20: 0 | F20: 0 | G20: 0 | H20: 0 | I20: 0 | J20: 0 | K20: 0 | L20: 0 | M20: 0 | N20: 0
C21: > 132 kV | D21: for year wooden pole staked | E21: 0 | F21: 0 | G21: 0 | H21: 0 | I21: 0 | J21: 0 | K21: 0 | L21: 0 | M21: 0 | N21: 0
B24: ASSET REPLACEMENTS
E25: VOLUMES (0's)
B26: ASSET GROUP | C26: ASSET CATEGORY | E26: =dms_y1 -> 2009 | F26: =dms_y2 -> 2010 | G26: =dms_y3 -> 2011 | H26: =dms_y4 -> 2012 | I26: =dms_y5 -> 2013 | J26: =dms_y6 -> 2014 | K26: =dms_y7 -> 2015 | L26: =dms_y8 -> 2016 | M26: =dms_y9 -> 2017 | N26: =dms_y10 -> 2018
B27: STAKING WOODEN POLES BY: HIGHEST OPERATING VOLTAGE | C27: ˂ = 1 Kv | E27: 236 | F27: 212 | G27: 163 | H27: 273 | I27: 316 | J27: 440 | K27: 139 | L27: 127 | M27: 134 | N27: 39
C28: > 1 kV & < = 11 kV | E28: 64 | F28: 78 | G28: 106 | H28: 101 | I28: 132 | J28: 160 | K28: 63 | L28: 85 | M28: 56 | N28: 17
C29: ˃ 11 kV & < = 22 kV | E29: 2 | F29: 3 | G29: 4 | H29: 2 | I29: 2 | J29: 2 | K29: 1 | L29: 0 | M29: 0 | N29: 0
C30: > 22 kV & < = 66 kV | E30: 9 | F30: 11 | G30: 6 | H30: 23 | I30: 31 | J30: 18 | K30: 18 | L30: 6 | M30: 11 | N30: 6
C31: > 66 kV & < = 132 kV | E31: 0 | F31: 0 | G31: 0 | H31: 0 | I31: 0 | J31: 0 | K31: 0 | L31: 0 | M31: 0 | N31: 0
C32: > 132 kV | E32: 0 | F32: 0 | G32: 0 | H32: 0 | I32: 0 | J32: 0 | K32: 0 | L32: 0 | M32: 0 | N32: 0
B33: STAKED POLE REPLACED WITH NEW POLE BY: HIGHEST OPERATING VOLTAGE | C33: ˂ = 1 Kv | E33: 0 | F33: 1 | G33: 1 | H33: 0 | I33: 4 | J33: 5 | K33: 9 | L33: 5 | M33: 7 | N33: 4
C34: > 1 kV & < = 11 kV | E34: 0 | F34: 0 | G34: 0 | H34: 0 | I34: 2 | J34: 0 | K34: 5 | L34: 4 | M34: 1 | N34: 2
C35: ˃ 11 kV & < = 22 kV | E35: 0 | F35: 0 | G35: 0 | H35: 0 | I35: 0 | J35: 0 | K35: 0 | L35: 0 | M35: 0 | N35: 0
C36: > 22 kV & < = 66 kV | E36: 0 | F36: 0 | G36: 0 | H36: 0 | I36: 0 | J36: 0 | K36: 1 | L36: 0 | M36: 1 | N36: 1
C37: > 66 kV & < = 132 kV
C38: > 132 kV
B41: ASSET FAILURES
E42: VOLUMES (0's)
B43: ASSET GROUP | C43: ASSET CATEGORY | E43: =dms_y1 -> 2009 | F43: =dms_y2 -> 2010 | G43: =dms_y3 -> 2011 | H43: =dms_y4 -> 2012 | I43: =dms_y5 -> 2013 | J43: =dms_y6 -> 2014 | K43: =dms_y7 -> 2015 | L43: =dms_y8 -> 2016 | M43: =dms_y9 -> 2017 | N43: =dms_y10 -> 2018
B44: STAKING WOODEN POLES BY: HIGHEST OPERATING VOLTAGE | C44: ˂ = 1 Kv
C45: > 1 kV & < = 11 kV
C46: ˃ 11 kV & < = 22 kV
C47: > 22 kV & < = 66 kV
C48: > 66 kV & < = 132 kV
C49: > 132 kV
B50: STAKED POLE REPLACED WITH NEW POLE BY: HIGHEST OPERATING VOLTAGE | C50: ˂ = 1 Kv
C51: > 1 kV & < = 11 kV
C52: ˃ 11 kV & < = 22 kV
C53: > 22 kV & < = 66 kV
C54: > 66 kV & < = 132 kV
C55: > 132 kV

Sheet 2.5 Connections
B1: =INDEX(dms_Worksheet_List,MATCH(dms_Model,dms_Model_List)) -> NEW HISTORICAL - CALENDAR YEARS
B2: =INDEX(dms_TradingNameFull_List,MATCH(dms_TradingName,dms_TradingName_List)) -> CitiPower
B3: =dms_Header_Span -> 2009 to 2018
B4: 2.5 CONNECTIONS
B6: There are THREE tables on this worksheet - each has been 'grouped' (and sub-grouped) for easy navigation. See the Instructions sheet on how to group or ungroup tables.
B8: EXPENDITURE - STANDARD CONTROL SERVICES
E9: EXPENDITURE
E10: ($0's)
E11: =dms_y1 -> 2009 | F11: =dms_y2 -> 2010 | G11: =dms_y3 -> 2011 | H11: =dms_y4 -> 2012 | I11: =dms_y5 -> 2013 | J11: =dms_y6 -> 2014 | K11: =dms_y7 -> 2015 | L11: =dms_y8 -> 2016 | M11: =dms_y9 -> 2017 | N11: =dms_y10 -> 2018
B12: RESIDENTIAL | C12: Simple connection LV | E12: 961981.0437 | F12: 1356290.049 | G12: 1109839.345 | H12: 1104923.708 | I12: 1150295.236 | J12: 1660643.166 | K12: 1614667.438 | L12: 0 | M12: 0 | N12: 0
C13: Complex connection LV | E13: 6662015.343 | F13: 5828675.327 | G13: 7746894.186 | H13: 8188294.012 | I13: 7879213.772 | J13: 7781791.634 | K13: 7970781.925 | L13: 10951075.67 | M13: 14189880.01 | N13: 14835324.27
C14: Complex connection HV | E14: 19095571.93 | F14: 15046845.73 | G14: 21205683.59 | H14: 22440078.24 | I14: 21112646.6 | J14: 21796155.35 | K14: 22954430.33 | L14: 18213893.09 | M14: 17609165.34 | N14: 23509000.51
B15: COMMERCIAL/INDUSTRIAL | C15: Simple connection LV | E15: 2004340.981 | F15: 1861723.611 | G15: 2089366.207 | H15: 2155253.775 | I15: 2148546.586 | J15: 1931965.606 | K15: 2312138.488 | L15: 1604233.019 | M15: 1807090.414 | N15: 2173017.98
C16: Complex connection HV (customer connected at LV, minor HV works) | E16: 0 | F16: 0 | G16: 0 | H16: 0 | I16: 0 | J16: 0 | K16: 0 | L16: 0 | M16: 0 | N16: 0
C17: Complex connection HV (customer connected at LV, upstream asset works) | E17: 8482018.888 | F17: 6569292.992 | G17: 9474009.851 | H17: 9912464.294 | I17: 9372449.336 | J17: 9500323.766 | K17: 9620233.81 | L17: 7667000.793 | M17: 7529160.828 | N17: 9908074.226
C18: Complex connection HV (customer connected at HV) | E18: 0 | F18: 0 | G18: 202705.6285 | H18: 0 | I18: 0 | J18: 732825.6839 | K18: 1671022.347 | L18: 4089456.132 | M18: 2448878.279 | N18: 1374684.497
C19: Complex connection sub-transmission | E19: 0 | F19: 0 | G19: 0 | H19: 0 | I19: 0 | J19: 0 | K19: 0 | L19: 0 | M19: 0 | N19: 0
B20: SUBDIVISION | C20: Complex connection LV | E20: 0 | F20: 0 | G20: 0 | H20: 0 | I20: 0 | J20: 0 | K20: 0 | L20: 0 | M20: 0 | N20: 0
C21: Complex connection HV (no upstream asset works) | E21: 0 | F21: 0 | G21: 0 | H21: 0 | I21: 0 | J21: 0 | K21: 0 | L21: 0 | M21: 0 | N21: 0
C22: Complex connection HV (with upstream asset works) | E22: 0 | F22: 0 | G22: 0 | H22: 0 | I22: 0 | J22: 0 | K22: 0 | L22: 0 | M22: 0 | N22: 0
B23: EMBEDDED GENERATION | C23: Simple connection LV | E23: 0 | F23: 0 | G23: 0 | H23: 0 | I23: 0 | J23: 0 | K23: 0 | L23: 0 | M23: 0 | N23: 0
C24: Complex connection HV (small capacity) | E24: 0 | F24: 211216.935 | G24: 695969.3558 | H24: 201066.7856 | I24: 280889.0741 | J24: 119408.0742 | K24: 65892.48763 | L24: 21594.3005 | M24: 41208.12888 | N24: 8916.305981
C25: Complex connection HV (large capacity) | E25: 0 | F25: 0 | G25: 0 | H25: 0 | I25: 0 | J25: 0 | K25: 0 | L25: 0 | M25: 0 | N25: 0
B28: EXPENDITURE - STANDARD CONTROL SERVICES - CAPITAL CONTRIBUTIONS
E29: EXPENDITURE
E30: ($0's)
E31: =dms_y1 -> 2009 | F31: =dms_y2 -> 2010 | G31: =dms_y3 -> 2011 | H31: =dms_y4 -> 2012 | I31: =dms_y5 -> 2013 | J31: =dms_y6 -> 2014 | K31: =dms_y7 -> 2015 | L31: =dms_y8 -> 2016 | M31: =dms_y9 -> 2017 | N31: =dms_y10 -> 2018
B32: RESIDENTIAL | C32: Simple connection LV | E32: 344749.8552 | F32: 454856.9929 | G32: 290908.7722 | H32: 250841.5594 | I32: 278352.6271 | J32: 404957.5413 | K32: 449715.4609 | L32: 0 | M32: 0 | N32: 0
C33: Complex connection LV | E33: 2387499.047 | F33: 1954754.246 | G33: 2030599.731 | H33: 1858919.692 | I33: 1906640.822 | J33: 1897635.369 | K33: 2220013.721 | L33: 5055377.152 | M33: 7819283.185 | N33: 7558063.492
C34: Complex connection HV | E34: 6843373.58 | F34: 5046238.457 | G34: 5558389.513 | H34: 5094382.696 | I34: 5108915.055 | J34: 5315119.865 | K34: 6393243.573 | L34: 8408132.841 | M34: 9703468.277 | N34: 11976989.2
B35: COMMERCIAL/INDUSTRIAL | C35: Simple connection LV | E35: 718305.4881 | F35: 624363.5011 | G35: 547660.3082 | H35: 489289.1826 | I35: 519913.1216 | J35: 471121.104 | K35: 643974.3576 | L35: 740566.7898 | M35: 995790.7809 | N35: 1107074.41
C36: Complex connection HV (customer connected at LV, minor HV works) | E36: 0 | F36: 0 | G36: 0 | H36: 0 | I36: 0 | J36: 0 | K36: 0 | L36: 0 | M36: 0 | N36: 0
C37: Complex connection HV (customer connected at LV, upstream asset works) | E37: 3039742.626 | F37: 2203134.1 | G37: 2483307.683 | H37: 2250343.606 | I37: 2267979.397 | J37: 2316709.473 | K37: 2679417.31 | L37: 3539340.044 | M37: 4148917.442 | N37: 5047807.026
C38: Complex connection HV (customer connected at HV) | E38: 0 | F38: 0 | G38: 53132.77617 | H38: 0 | I38: 0 | J38: 178703.8258 | K38: 465411.3705 | L38: 1887827.618 | M38: 1349445.714 | N38: 700352.2485
C39: Complex connection sub-transmission | E39: 0 | F39: 0 | G39: 0 | H39: 0 | I39: 0 | J39: 0 | K39: 0 | L39: 0 | M39: 0 | N39: 0
B40: SUBDIVISION | C40: Complex connection LV | E40: 0 | F40: 0 | G40: 0 | H40: 0 | I40: 0 | J40: 0 | K40: 0 | L40: 0 | M40: 0 | N40: 0
C41: Complex connection HV (no upstream asset works) | E41: 0 | F41: 0 | G41: 0 | H41: 0 | I41: 0 | J41: 0 | K41: 0 | L41: 0 | M41: 0 | N41: 0
C42: Complex connection HV (with upstream asset works) | E42: 0 | F42: 0 | G42: 0 | H42: 0 | I42: 0 | J42: 0 | K42: 0 | L42: 0 | M42: 0 | N42: 0
B43: EMBEDDED GENERATION | C43: Simple connection LV | E43: 0 | F43: 0 | G43: 0 | H43: 0 | I43: 0 | J43: 0 | K43: 0 | L43: 0 | M43: 0 | N43: 0
C44: Complex connection HV (small capacity) | E44: 0 | F44: 70835.51192 | G44: 182426.0346 | H44: 45646.50544 | I44: 67970.56031 | J44: 29118.35676 | K44: 18352.30572 | L44: 9968.64022 | M44: 22707.59366 | N44: 4542.536819
C45: Complex connection HV (large capacity) | E45: 0 | F45: 0 | G45: 0 | H45: 0 | I45: 0 | J45: 0 | K45: 0 | L45: 0 | M45: 0 | N45: 0
B48: NEW CONNECTIONS - STANDARD CONTROL SERVICES
E49: VOLUMES (0's)
E50: =dms_y1 -> 2009 | F50: =dms_y2 -> 2010 | G50: =dms_y3 -> 2011 | H50: =dms_y4 -> 2012 | I50: =dms_y5 -> 2013 | J50: =dms_y6 -> 2014 | K50: =dms_y7 -> 2015 | L50: =dms_y8 -> 2016 | M50: =dms_y9 -> 2017 | N50: =dms_y10 -> 2018
B51: RESIDENTIAL | C51: Simple connection LV | E51: 4494.362225 | F51: 3731.068333 | G51: 5128.472687 | H51: 5322.094134 | I51: 4545.324128 | J51: 4228.62 | K51: 3337 | L51: 0 | M51: 0 | N51: 0
C52: Complex connection LV | E52: 231 | F52: 159 | G52: 145 | H52: 147 | I52: 147 | J52: 141.4802521 | K52: 95 | L52: 549 | M52: 602 | N52: 788.2932055
C53: Complex connection HV | E53: 106 | F53: 69 | G53: 85 | H53: 100 | I53: 85 | J53: 85.51399377 | K53: 88 | L53: 51 | M53: 77 | N53: 194.70263
B54: COMMERCIAL/INDUSTRIAL | C54: Simple connection LV | E54: 1877 | F54: 1671 | G54: 1437 | H54: 1607 | I54: 1780 | J54: 1559.401078 | K54: 1350 | L54: 17 | M54: 26.9 | N54: 35.45530743
C55: Complex connection HV (customer connected at LV, minor HV works) | E55: 0 | F55: 0 | G55: 0 | H55: 0 | I55: 0 | J55: 0 | K55: 0 | L55: 0 | M55: 0 | N55: 0
C56: Complex connection HV (customer connected at LV, upstream asset works) | E56: 46 | F56: 34 | G56: 39 | H56: 44 | I56: 38 | J56: 37.53615097 | K56: 37 | L56: 22 | M56: 34.4 | N56: 86.31999547
C57: Complex connection HV (customer connected at HV) | E57: 0 | F57: 0 | G57: 1 | H57: 1 | I57: 0 | J57: 7.074019796 | K57: 1 | L57: 3 | M57: 2.7 | N57: 1.54676904
C58: Complex connection sub-transmission | E58: 0 | F58: 0 | G58: 0 | H58: 0 | I58: 0 | J58: 0 | K58: 0 | L58: 0 | M58: 0 | N58: 0
B59: SUBDIVISION | C59: Complex connection LV | E59: 0 | F59: 0 | G59: 0 | H59: 0 | I59: 0 | J59: 0 | K59: 0 | L59: 0 | M59: 0 | N59: 0
C60: Complex connection HV (no upstream asset works) | E60: 0 | F60: 0 | G60: 0 | H60: 0 | I60: 0 | J60: 0 | K60: 0 | L60: 0 | M60: 0 | N60: 0
C61: Complex connection HV (with upstream asset works) | E61: 0 | F61: 0 | G61: 0 | H61: 0 | I61: 0 | J61: 0 | K61: 0 | L61: 0 | M61: 0 | N61: 0
B62: EMBEDDED GENERATION | C62: Simple connection LV | E62: 0 | F62: 0 | G62: 0 | H62: 0 | I62: 0 | J62: 0 | K62: 0 | L62: 0 | M62: 0 | N62: 0
C63: Complex connection HV (small capacity) | E63: 0 | F63: 3 | G63: 6 | H63: 2 | I63: 4 | J63: 1.259294535 | K63: 1 | L63: 1 | M63: 1 | N63: 0.2214205593
C64: Complex connection HV (large capacity) | E64: 0 | F64: 0 | G64: 0 | H64: 0 | I64: 0 | J64: 0 | K64: 0 | L64: 0 | M64: 0 | N64: 0

Sheet 2.6 Non-network
B1: =INDEX(dms_Worksheet_List,MATCH(dms_Model,dms_Model_List)) -> NEW HISTORICAL - CALENDAR YEARS
B2: =INDEX(dms_TradingNameFull_List,MATCH(dms_TradingName,dms_TradingName_List)) -> CitiPower
B3: =dms_Header_Span -> 2009 to 2018
B4: 2.6 NON NETWORK EXPENDITURE
B7: 2.6.5 - INFORMATION & COMMUNICATIONS TECHNOLOGY - CAPEX
C8: EXPENDITURE
C9: ($0's)
C10: =dms_y1 -> 2009 | D10: =dms_y2 -> 2010 | E10: =dms_y3 -> 2011 | F10: =dms_y4 -> 2012 | G10: =dms_y5 -> 2013 | H10: =dms_y6 -> 2014 | I10: =dms_y7 -> 2015 | J10: =dms_y8 -> 2016 | K10: =dms_y9 -> 2017 | L10: =dms_y10 -> 2018
B11: RECURRENT
B12: Market Compliance | C12: 230958.847 | D12: 439268.0551 | E12: 338845.3729 | F12: 561431.7162 | G12: 487923.1054 | H12: 839377.0766 | I12: 1976252.598 | J12: 1223441.269 | K12: 821120.6552 | L12: 771495.5061
B13: Customer Engagement | C13: 68983.41229 | D13: 131201.7692 | E13: 101207.2513 | F13: 167689.9415 | G13: 145734.1911 | H13: 250707.4126 | I13: 590272.4641 | J13: 365420.743 | K13: 245254.5353 | L13: 230432.3617
B14: Corporate Services | C14: 519629.1702 | D14: 988299.4217 | E14: 762360.6639 | F14: 1263152.724 | G14: 1097767.337 | H14: 1888495.805 | I14: 4446326.74 | J14: 2752593.285 | K14: 1847421.089 | L14: 1735770.57
B15: Field Work & Construction | C15: 200618.6396 | D15: 381563.0394 | E15: 294332.5127 | F15: 487678.5134 | G15: 423826.4562 | H15: 729111.2224 | I15: 1716639.622 | J15: 1062722.326 | K15: 713253.0793 | L15: 670147.002
B16: Service Management and Ops | C16: 208601.5392 | D16: 396745.9726 | E16: 306044.4198 | F16: 507083.9315 | G16: 440691.1106 | H16: 758123.5895 | I16: 1784947.141 | J16: 1105009.551 | K16: 741634.4285 | L16: 696813.0994
B17: Network Assets and Network Operations | C17: 550981.8178 | D17: 1047930.03 | E17: 808358.9 | F17: 1339367.041 | G17: 1164002.865 | H17: 2002441.186 | I17: 4714602.894 | J17: 2918675.353 | K17: 1958888.161 | L17: 1840501.032
B18: Cyber Security | C18: 127091.4474 | D18: 241719.309 | E18: 186458.9707 | F18: 308943.218 | G18: 268493.0865 | H18: 461890.2846 | I18: 1087487.257 | J18: 673232.1523 | K18: 451844.1874 | L18: 424536.5865
B22: NON-RECURRENT
B23: Market Compliance | C23: 344587.2244 | D23: 655381.5184 | E23: 505552.3443 | F23: 837647.9155 | G23: 727974.1425 | H23: 1252338.331 | I23: 2948539.993 | J23: 1825356.493 | K23: 1225100.017 | L23: 1151060.02
B24: Customer Engagement | C24: 29629.93727 | D24: 56354.13012 | E24: 43470.80562 | F24: 72026.62617 | G24: 62596.1343 | H24: 107684.5094 | I24: 253535.3863 | J24: 156956.4817 | K24: 105342.3751 | L24: 98975.91603
B25: Corporate Services | C25: 38317.50355 | D25: 72877.29168 | E25: 56216.54657 | F25: 93144.99989 | G25: 80949.46596 | H25: 139257.8571 | I25: 327872.5492 | J25: 202976.4859 | K25: 136229.0037 | L25: 127995.884
B26: Field Work & Construction | C26: 5358.163339 | D26: 10190.86309 | E26: 7861.092477 | F26: 13025.0167 | G26: 11319.643 | H26: 19473.25048 | I26: 45848.35937 | J26: 28383.40353 | K26: 19049.70798 | L26: 17898.42212
B27: Service Management and Ops | C27: 119.3382755 | D27: 226.9733021 | E27: 175.0841025 | F27: 290.0962386 | G27: 252.1137541 | H27: 433.7128197 | I27: 1021.145455 | J27: 632.1618463 | K27: 424.2795814 | L27: 398.6378716
B28: Network Assets and Network Operations | C28: 88472.89079 | D28: 168269.4349 | E28: 129800.7418 | F28: 215066.3963 | G28: 186907.6166 | H28: 321538.3061 | I28: 757038.6782 | J28: 468660.9202 | K28: 314544.8594 | L28: 295535.0641
B29: Cyber Security | C29: 2038.496201 | D29: 3877.081449 | E29: 2990.727631 | F29: 4955.326177 | G29: 4306.522177 | H29: 7408.536212 | I29: 17442.8625 | J29: 10798.3756 | K29: 7247.400814 | L29: 6809.39777

Sheet 2.10 Network overheads
B1: =INDEX(dms_Worksheet_List,MATCH(dms_Model,dms_Model_List)) -> NEW HISTORICAL - CALENDAR YEARS
B2: =INDEX(dms_TradingNameFull_List,MATCH(dms_TradingName,dms_TradingName_List)) -> CitiPower
B3: =dms_Header_Span -> 2009 to 2018
B4: 2.10 OVERHEADS
B7: 2.10.1 - NETWORK OVERHEADS EXPENDITURE
D8: EXPENDITURE
D9: ($0's)
D10: =dms_y1 -> 2009 | E10: =dms_y2 -> 2010 | F10: =dms_y3 -> 2011 | G10: =dms_y4 -> 2012 | H10: =dms_y5 -> 2013 | I10: =dms_y6 -> 2014 | J10: =dms_y7 -> 2015 | K10: =dms_y8 -> 2016 | L10: =dms_y9 -> 2017 | M10: =dms_y10 -> 2018
B11: OPEX
B12: Standard Control Services | C12: Total | D12: 15843481.56 | E12: 16629361.87 | F12: 17519316.89 | G12: 22765819.59 | H12: 22010521.52 | I12: 23921523.64 | J12: 27073192.45 | K12: 20026511 | L12: 15102699.68 | M12: 13261953.83
B13: Alternative Control Services | C13: Total | D13: 1722001.79 | E13: 1975115.453 | F13: 1117279.23 | G13: 1372202.409 | H13: 1180288.604 | I13: 1183085.815 | J13: 995407.7723 | K13: 1015137 | L13: 860150 | M13: 682656.9423
B14: CAPEX
B15: Standard Control Services | C15: Total | D15: 14364918.87 | E15: 14314288.63 | F15: 15107854.75 | G15: 11721535.01 | H15: 13897704.83 | I15: 15414141.58 | J15: 14335092.21 | K15: 16688223 | L15: 17421557.32 | M15: 17928329.16
B16: Alternative Control Services | C16: Total | D16: 387945 | E16: 898884 | F16: 263652 | G16: 191363 | H16: 475090 | I16: 447591.9 | J16: 420811.11 | K16: 288658 | L16: 688709 | M16: 511173.53
B17: OTHER DISTRIBUTION SERVICES
B18: Negotiated Services | C18: Total | D18: 0 | E18: 0 | F18: 0 | G18: 0 | H18: 0 | I18: 0 | J18: 0 | K18: 156400 | L18: 819097 | M18: 921077.8547
B19: Unregulated Services | C19: Total | D19: 0 | E19: 0 | F19: 0 | G19: 0 | H19: 0 | I19: 0 | J19: 0 | K19: 0 | L19: 0
B23: 2.10.2 - CORPORATE OVERHEADS EXPENDITURE
D24: EXPENDITURE
D25: ($0's)
D26: =dms_y1 -> 2009 | E26: =dms_y2 -> 2010 | F26: =dms_y3 -> 2011 | G26: =dms_y4 -> 2012 | H26: =dms_y5 -> 2013 | I26: =dms_y6 -> 2014 | J26: =dms_y7 -> 2015 | K26: =dms_y8 -> 2016 | L26: =dms_y9 -> 2017 | M26: =dms_y10 -> 2018
B27: OPEX
B28: Standard Control Services | C28: Total | D28: 8121737.567 | E28: 8918988.329 | F28: 5452269.548 | G28: 7358008.209 | H28: 8225106.418 | I28: 8171649.131 | J28: 8145897.162 | K28: 31880074 | L28: 33215860 | M28: 33137593.27
B29: Alternative Control Services | C29: Total | D29: 1055370.109 | E29: 1397754.451 | F29: 1047284.377 | G29: 1506243.136 | H29: 1162518.1 | I29: 1356949.513 | J29: 967140.1329 | K29: 2670996 | L29: 5153251 | M29: 5188212.327
B30: CAPEX
B31: Standard Control Services | C31: Total | D31: 12378745.84 | E31: 12017909.21 | F31: 13803610.27 | G31: 14930537.59 | H31: 15557834.3 | I31: 18289329.41 | J31: 17883082.56 | K31: - | L31: 0 | M31: 0
B32: Alternative Control Services | C32: Total | D32: 352161 | E32: 592243 | F32: 604179 | G32: 662483 | H32: 757589 | I32: 650633.93 | J32: 798005.97 | K32: - | L32: 915714 | M32: 707873.14
B33: OTHER DISTRIBUTION SERVICES
B34: Negotiated Services | C34: Total | D34: 0 | E34: 0 | F34: 0 | G34: 0 | H34: 0 | I34: 0 | J34: 0 | K34: 0 | L34: 738207 | M34: 914722.3715
B35: Unregulated Services | C35: Total | D35: 0 | E35: 0 | F35: 0 | G35: 0 | H35: 0 | I35: 0 | J35: 0 | K35: 0 | L35: 0

Sheet 2.11 Labour
B1: =INDEX(dms_Worksheet_List,MATCH(dms_Model,dms_Model_List)) -> NEW HISTORICAL - CALENDAR YEARS
B2: =INDEX(dms_TradingNameFull_List,MATCH(dms_TradingName,dms_TradingName_List)) -> CitiPower
B3: =dms_Header_Span -> 2009 to 2018
B4: 2.11 LABOUR
B6: Table numbering on this worksheet starts at 2.11.3.
B8: 2.11.3 - LABOUR / NON-LABOUR EXPENDITURE SPLIT - STANDARD CONTROL SERVICES
C9: EXPENDITURE
C10: ($0's)
C11: =dms_y1 -> 2009 | D11: =dms_y2 -> 2010 | E11: =dms_y3 -> 2011 | F11: =dms_y4 -> 2012 | G11: =dms_y5 -> 2013 | H11: =dms_y6 -> 2014 | I11: =dms_y7 -> 2015 | J11: =dms_y8 -> 2016 | K11: =dms_y9 -> 2017 | L11: =dms_y10 -> 2018
B12: OPEX
B13: In-house labour expenditure
B14: Labour expenditure outsourced to related parties
B15: Labour expenditure outsourced to unrelated parties
B16: Controllable non-labour expenditure
B17: Uncontrollable non-labour expenditure
B18: Total | C18: =SUM(C13:C17) -> 0 | D18: 0 | E18: 0 | F18: 0 | G18: 0 | H18: 0 | I18: 0 | J18: 0 | K18: 0 | L18: 0
B19: CAPEX
B20: In-house labour expenditure
B21: Labour expenditure outsourced to related parties
B22: Labour expenditure outsourced to unrelated parties
B23: Controllable non-labour expenditure
B24: Uncontrollable non-labour expenditure
B25: Total | C25: =SUM(C20:C24) -> 0 | D25: 0 | E25: 0 | F25: 0 | G25: 0 | H25: 0 | I25: 0 | J25: 0 | K25: 0 | L25: 0

Sheet 8.2 Capex
B1: =IF(dms_MultiYear_ResponseFlag="Yes","REGULATORY REPORTING STATEMENT - HISTORICAL INFORMATION",INDEX(dms_Worksheet_List,MATCH(dms_Model,dms_Model_List))) -> REGULATORY REPORTING STATEMENT - HISTORICAL INFORMATION
B2: =INDEX(dms_TradingNameFull_List,MATCH(dms_TradingName,dms_TradingName_List)) -> CitiPower
B3: =dms_Header_Span -> 2009 to 2018
B4: 8.2 CAPITAL EXPENDITURE
B7: 8.2.7 - IMMEDIATE EXPENSING CAPEX
B8: ACTUAL - AS INCURRED
C9: EXPENDITURE
C10: $0's
B11: Asset class | C11: =dms_y1 -> 2009 | D11: =dms_y2 -> 2010 | E11: =dms_y3 -> 2011 | F11: =dms_y4 -> 2012 | G11: =dms_y5 -> 2013 | H11: =dms_y6 -> 2014 | I11: =dms_y7 -> 2015 | J11: =dms_y8 -> 2016 | K11: =dms_y9 -> 2017 | L11: =dms_y10 -> 2018
B12: Subtransmission | J12: 6981231.423 | K12: 18578764.4 | L12: 11279441.55
B13: Distribution system assets | J13: 31894954.04 | K13: 26005667.69 | L13: 32937886.96
B14: Standard metering | J14: 0 | K14: 0 | L14: 0
B15: Public lighting | J15: 0 | K15: 0 | L15: 0
B16: SCADA/Network control | J16: 0 | K16: 0 | L16: 0
B17: Non-network general assets - IT | J17: 0 | K17: 0 | L17: 0
B18: Non-network general assets - Other | J18: 0 | K18: 0 | L18: 0
B19: VBRC | J19: 0 | K19: 0 | L19: 0
B20: Supervisory cables | J20: 0 | K20: 0 | L20: 0
B21: Old SWER ACRs | J21: 0 | K21: 0 | L21: 0
B22: Land | J22: 0 | K22: 0 | L22: 0
B42: Total | J42: =SUM(J12:J41) -> 38876185.46 | K42: =SUM(K12:K41) -> 44584432.09 | L42: =SUM(L12:L41) -> 44217328.51
